{"text_format":"1","workbook":"xlsx","n_sheets":6,"sheets":["Prezenční listina","Startovní listina","Výsledková listina","Běh přes přehradu","mezičasy","List1"],"not_rendered":{"charts":0,"images":7,"macros":1,"external_links":0,"defined_names":6,"comments":0,"pivot_tables":0},"unopened":[],"bounds":{"document_bytes":16777216,"sheet_cells":100000,"rows_first":2000,"rows_last":500,"rows_between":2000,"halvings":0,"cell_chars":16384,"cell_head_chars":4096},"cells_cut":0,"cells_raw":0,"read":"whole","date_system":"1900"}

{"sheet":"Prezenční listina","index":0,"n_rows":152,"n_cols":19,"rows_kept":152,"cut":false,"hidden":true,"merged":[[5,10,5,12],[0,0,0,7]]}
[{"$f":"\"Prezenční listina - Bystřickem kolem Vírské přehrady \"&$O$2","v":"Prezenční listina - Bystřickem kolem Vírské přehrady 2019"}]
[null,"Příjmení","Jméno","Narození","Oddíl / Bydliště","Startovní číslo","Adresa (e-mail)","Kategorie",null,null,null,null,null,null,2019,null,null,null,"Pohlaví"]
[{"$f":"IF(B3<>0,A2+1,\"\")","v":1},"Brožek","Radmil",1954,"KRB Chrudim",14,"radmil.brozek@seznam.cz",{"$f":"IF(S3<>\"Ž\",IF($O$2-D3>39,IF($O$2-D3>49,IF($O$2-D3>59,IF($O$2-D3>69,IF($O$2-D3>90,\"to snad ne!\",\"E\"),\"D\"),\"C\"),\"B\"),\"A\"),IF(S3=\"Ž\",IF($O$2-D3>34,IF($O$2-D3>44,IF($O$2-D3>90,\"to snad ne!\",\"H\"),\"G\"),\"F\")))","v":"D"},null,null,null,null,null,null,null,null,null,null,{"$f":"IF(LEN(B3)=0,\" \",IF(MID(B3,LEN(B3),1)=\"á\",\"Ž\",\"M\"))","v":"M"}]
[2,"Caha","Zbyněk",1984,"Atletic Třebíč",2,"caha.z@seznam.cz","A",null,null,null,null,null,null,null,null,null,null,"M"]
[3,"Czerný","Pavel",1981,"Never Alone (Brno)",4,"xczerny@gmail.com","A",null,null,null,null,null,null,null,null,null,null,"M"]
[4,"Glier","Michal",1982,"SDH Doubravník",21,"Michalglier@seznam.cz","A",null,null,"Rok nastavit v buňce O2",null,null,null,null,null,null,null,"M"]
[5,"Hanák","Jakub",1986,"Plant Powered Runners (Vír)",3,"jacobakiro@gmail.com","A",null,null,null,null,null,null,null,null,null,null,"M"]
[6,"Hladký","Jiří",1975,"Brno",null,"jurahlad@seznam.cz","B",null,null,null,null,null,null,null,null,null,null,"M"]
[7,"Holý","Josef",1941,"AC Moravská Slavia Brno",9,"holyjosef@upcmail.cz","E",null,null,null,null,null,null,null,null,null,null,"M"]
[8,"Hráček","Radim",1975,"AZ fitness team Brno",null,"midar1975@gmail.com","B",null,null,null,null,null,null,null,null,null,null,"M"]
[9,"Hrdina","Tomáš",1979,"AC Moravská Slavia Brno",null,"tom@tomejc.cz","B",null,null,null,null,null,null,null,null,null,null,"M"]
[10,"Hübner","Tomáš",1979,"SDH Bolešín",6,"tomas.hubner@gmail.com","B",null,null,null,null,null,null,null,null,null,null,"M"]
[11,"Hýbl","Jiří",1967,"Hrušovany u Brna",27,"hybljura@seznam.cz","C",null,null,null,null,null,null,null,null,null,null,"M"]
[12,"Jílek","Jaroslav",1966,"Bystřice nad Pernštejnem",null,"jarjilek@tiscali.cz","C",null,null,null,null,null,null,null,null,null,null,"M"]
[13,"Klement","Pavel",1972,"Atletic Třebíč",1,"klementp@seznam.cz","B",null,null,null,null,null,null,null,null,null,null,"M"]
[14,"Klinecká","Jana",1981,"Hlinsko",36,"j.klinecka@seznam.cz","G",null,null,null,null,null,null,null,null,null,null,"Ž"]
[15,"Komárková","Zdeňka",1974,"SDH Bolešín",38,"zdekom252@seznam.cz","H",null,null,null,null,null,null,null,null,null,null,"Ž"]
[16,"Konečný","Libor",1971,"Kuřim",41,"kovokonecny@seznam.cz","B",null,null,null,null,null,null,null,null,null,null,"M"]
[17,"Koutský","Tomáš",1987,"Ledová stěna Vír",23,"koutskyt@gmail.com","A",null,null,null,null,null,null,null,null,null,null,"M"]
[{"$f":"IF(B20<>0,A19+1,\"\")","v":18},"Krátký","Josef",1965,"Hvězda Pardubice",12,"cagwe@seznam.cz","C",null,null,null,null,null,null,null,null,null,null,"M"]
[19,"Kratochvíl","Jaroslav",1977,"SDH Hluboké",37,"kratochviljaroslav77@seznam.cz","B",null,null,null,null,null,null,null,null,null,null,"M"]
[20,"Kuneš","David",1974,"EUrunner.eu (Tišnov)",null,"dkunes@post.cz","B",null,null,null,null,null,null,null,null,null,null,"M"]
[21,"Kupčík","Roman",1985,"Zastávka",null,"roman.kupcik@litostrojpower.com","A",null,null,null,null,null,null,null,null,null,null,"M"]
[22,"Labedz","Jan",1984,"Svinošice",null,"jan.labedz@gmail.com","A",null,null,null,null,null,null,null,null,null,null,"M"]
[23,"Ledvina","Marek",1982,"KRB Chrudim",null,"kresetak@seznam.cz","A",null,null,null,null,null,null,null,null,null,null,"M"]
[24,"Lorenzová","Dana",1968,"Nové Město na Moravě",25,"danalorenz@hotmail.com","H",null,null,null,null,null,null,null,null,null,null,"Ž"]
[25,"Mareš","Bohumil",1951,"Posilovna Průvan Brno",11,"maresbo@seznam.cz","D",null,null,null,null,null,null,null,null,null,null,"M"]
[26,"Matulová","Martina",1972,"Brno",24,"matulovam@centrum.cz","H",null,null,null,null,null,null,null,null,null,null,"Ž"]
[27,"Nosek","Pavel ",1965,"ASK Slavkov",34,"nosek_pavel@volny.cz","C",null,null,null,null,null,null,null,null,null,null,"M"]
[28,"Novotný","Libor",1961,"Kuřim",10,"libor.nov.ez@volny.cz","C",null,null,null,null,null,null,null,null,null,null,"M"]
[29,"Ožana","Václav",1964,"Nové Město na Moravě",null,"Vaclav.Ozana@seznam.cz","C",null,null,null,null,null,null,null,null,null,null,"M"]
[30,"Petržílek","Zdeněk",1955,"KRB Chrudim",13,"zdeneka.petrzilek@iol.cz","D",null,null,null,null,null,null,null,null,null,null,"M"]
[31,"Prášek","Ondřej",1978,"Kajak VUT (Brno)",31,"ondrapr@centrum.cz","B",null,null,null,null,null,null,null,null,null,null,"M"]
[32,"Sedláček","Svatopluk",1957,"AC Moravská Slavia Brno",42,"ssedlacek@volny.cz","D",null,null,null,null,null,null,null,null,null,null,"M"]
[33,"Srnec","Lukáš",1990,null,null,"mrna.srna@seznam.cz","A",null,null,null,null,null,null,null,null,null,null,{"$f":"IF(LEN(B35)=0,\" \",IF(MID(B35,LEN(B35),1)=\"á\",\"Ž\",\"M\"))","v":"M"}]
[34,"Svoboda","Petr",1968,"AC Moravská Slavia Brno",28,"pesvoboda@bvk.cz","C",null,null,null,null,null,null,null,null,null,null,"M"]
[35,"Svoboda","Vojtěch",1994,"Velké Meziříčí",35,"vojt.svoboda@seznam.cz","A",null,null,null,null,null,null,null,null,null,null,"M"]
[36,"Šimunek","Martin",1966,"Botanka Running (Modřice)",29,"simunek@servisdmychadel.cz","C",null,null,null,null,null,null,null,null,null,null,"M"]
[37,"Vintrlík","Martin",1977,"Triatlon Křepice",16,"vintrlik@gmail.com","B",null,null,null,null,null,null,null,null,null,null,"M"]
[38,"Viščor","Pavel",1974,"Brno",32,"pava@volny.cz","B",null,null,null,null,null,null,null,null,null,null,"M"]
[39,"Vránek","David",1978,"Brno",15,"david.vranek@seznam.cz","B",null,null,null,null,null,null,null,null,null,null,"M"]
[40,"Zemánková","Eva",1991,"AC Moravská Slavia Brno",22,"jarkase@seznam.cz","F",null,null,null,null,null,null,null,null,null,null,"Ž"]
[41,"Žák","Miroslav",1965,"Stříbrné Hory",40,"boba.z@seznam.cz","C",null,null,null,null,null,null,null,null,null,null,"M"]
[42,"Pozler","Jiří",1983,"Never Alone (Brno)",5,"jiri.pozler@gmail.com",{"$f":"IF(S44<>\"Ž\",IF($O$2-D44>39,IF($O$2-D44>49,IF($O$2-D44>59,IF($O$2-D44>69,IF($O$2-D44>90,\"to snad ne!\",\"E\"),\"D\"),\"C\"),\"B\"),\"A\"),IF(S44=\"Ž\",IF($O$2-D44>34,IF($O$2-D44>44,IF($O$2-D44>90,\"to snad ne!\",\"H\"),\"G\"),\"F\")))","v":"A"},null,null,null,null,null,null,null,null,null,null,"M"]
[43,"Koutník","Lumír",1967,"A.O.Spartak Vrchlabí",7,"photolumir@seznam.cz","C",null,null,null,null,null,null,null,null,null,null,"M"]
[44,"Podsedník","Marek",1985,"Brno",8,"podsednikmarek@gmail.com","A",null,null,null,null,null,null,null,null,null,null,"M"]
[45,"Nádhera","Petr",1967,"Hradec Králové",17,"nadhera@atlas.cz",{"$f":"IF(S47<>\"Ž\",IF($O$2-D47>39,IF($O$2-D47>49,IF($O$2-D47>59,IF($O$2-D47>69,IF($O$2-D47>90,\"to snad ne!\",\"E\"),\"D\"),\"C\"),\"B\"),\"A\"),IF(S47=\"Ž\",IF($O$2-D47>34,IF($O$2-D47>44,IF($O$2-D47>90,\"to snad ne!\",\"H\"),\"G\"),\"F\")))","v":"C"},null,null,null,null,null,null,null,null,null,null,"M"]
[46,"Nádherová","Hana",1968,"Hradec Králové",18,"nadherovah@seznam.cz","H",null,null,null,null,null,null,null,null,null,null,"Ž"]
[47,"Podmelová","Vilma",1962,"ČAU (Brno)",19,"vilka@centrum.cz","H",null,null,null,null,null,null,null,null,null,null,"Ž"]
[48,"Crha","Radek",1979,"Vidonín 10",20,"radekcrha@seznam.cz","B",null,null,null,null,null,null,null,null,null,null,"M"]
[49,"Kropáček","Jaroslav",1970,"Brno",26,null,"B",null,null,null,null,null,null,null,null,null,null,"M"]
[50,"Faja","Ondřej",1976,"Brno",30,null,"B",null,null,null,null,null,null,null,null,null,null,"M"]
[51,"Orálek","Daniel",1970,"Behejbrno.com",33,null,"B",null,null,null,null,null,null,null,null,null,null,"M"]
[52,"Petrů","Roman",1976,"Oddíl 2015",39,null,{"$f":"IF(S54<>\"Ž\",IF($O$2-D54>39,IF($O$2-D54>49,IF($O$2-D54>59,IF($O$2-D54>69,IF($O$2-D54>90,\"to snad ne!\",\"E\"),\"D\"),\"C\"),\"B\"),\"A\"),IF(S54=\"Ž\",IF($O$2-D54>34,IF($O$2-D54>44,IF($O$2-D54>90,\"to snad ne!\",\"H\"),\"G\"),\"F\")))","v":"B"},null,null,null,null,null,null,null,null,null,null,"M"]
[{"$f":"IF(B55<>0,A54+1,\"\")","v":""},null,null,null,null,null,null,"to snad ne!",null,null,null,null,null,null,null,null,null,null," "]
["",null,null,null,null,null,null,"to snad ne!",null,null,null,null,null,null,null,null,null,null," "]
["",null,null,null,null,null,null,"to snad ne!",null,null,null,null,null,null,null,null,null,null," "]
["",null,null,null,null,null,null,"to snad ne!",null,null,null,null,null,null,null,null,null,null," "]
["",null,null,null,null,null,null,"to snad ne!",null,null,null,null,null,null,null,null,null,null," "]
["",null,null,null,null,null,null,"to snad ne!",null,null,null,null,null,null,null,null,null,null," "]
["",null,null,null,null,null,null,"to snad ne!",null,null,null,null,null,null,null,null,null,null," "]
["",null,null,null,null,null,null,"to snad ne!",null,null,null,null,null,null,null,null,null,null," "]
["",null,null,null,null,null,null,"to snad ne!",null,null,null,null,null,null,null,null,null,null," "]
["",null,null,null,null,null,null,"to snad ne!",null,null,null,null,null,null,null,null,null,null," "]
["",null,null,null,null,null,null,"to snad ne!",null,null,null,null,null,null,null,null,null,null," "]
["",null,null,null,null,null,null,"to snad ne!",null,null,null,null,null,null,null,null,null,null," "]
["",null,null,null,null,null,null,{"$f":"IF(S67<>\"Ž\",IF($O$2-D67>39,IF($O$2-D67>49,IF($O$2-D67>59,IF($O$2-D67>69,IF($O$2-D67>90,\"to snad ne!\",\"E\"),\"D\"),\"C\"),\"B\"),\"A\"),IF(S67=\"Ž\",IF($O$2-D67>34,IF($O$2-D67>44,IF($O$2-D67>90,\"to snad ne!\",\"H\"),\"G\"),\"F\")))","v":"to snad ne!"},null,null,null,null,null,null,null,null,null,null,{"$f":"IF(LEN(B67)=0,\" \",IF(MID(B67,LEN(B67),1)=\"á\",\"Ž\",\"M\"))","v":" "}]
["",null,null,null,null,null,null,"to snad ne!",null,null,null,null,null,null,null,null,null,null," "]
[{"$f":"IF(B69<>0,A68+1,\"\")","v":""},null,null,null,null,null,null,"to snad ne!",null,null,null,null,null,null,null,null,null,null," "]
["",null,null,null,null,null,null,"to snad ne!",null,null,null,null,null,null,null,null,null,null," "]
["",null,null,null,null,null,null,"to snad ne!",null,null,null,null,null,null,null,null,null,null," "]
["",null,null,null,null,null,null,"to snad ne!",null,null,null,null,null,null,null,null,null,null," "]
["",null,null,null,null,null,null,"to snad ne!",null,null,null,null,null,null,null,null,null,null," "]
["",null,null,null,null,null,null,"to snad ne!",null,null,null,null,null,null,null,null,null,null," "]
["",null,null,null,null,null,null,"to snad ne!",null,null,null,null,null,null,null,null,null,null," "]
["",null,null,null,null,null,null,"to snad ne!",null,null,null,null,null,null,null,null,null,null," "]
["",null,null,null,null,null,null,{"$f":"IF(S77<>\"Ž\",IF($O$2-D77>39,IF($O$2-D77>49,IF($O$2-D77>59,IF($O$2-D77>69,IF($O$2-D77>90,\"to snad ne!\",\"E\"),\"D\"),\"C\"),\"B\"),\"A\"),IF(S77=\"Ž\",IF($O$2-D77>34,IF($O$2-D77>44,IF($O$2-D77>90,\"to snad ne!\",\"H\"),\"G\"),\"F\")))","v":"to snad ne!"},null,null,null,null,null,null,null,null,null,null," "]
["",null,null,null,null,null,null,"to snad ne!",null,null,null,null,null,null,null,null,null,null," "]
["",null,null,null,null,null,null,"to snad ne!",null,null,null,null,null,null,null,null,null,null," "]
["",null,null,null,null,null,null,"to snad ne!",null,null,null,null,null,null,null,null,null,null," "]
["",null,null,null,null,null,null,"to snad ne!",null,null,null,null,null,null,null,null,null,null," "]
["",null,null,null,null,null,null,"to snad ne!",null,null,null,null,null,null,null,null,null,null," "]
["",null,null,null,null,null,null,"to snad ne!",null,null,null,null,null,null,null,null,null,null," "]
["",null,null,null,null,null,null,"to snad ne!",null,null,null,null,null,null,null,null,null,null," "]
["",null,null,null,null,null,null,"to snad ne!",null,null,null,null,null,null,null,null,null,null," "]
["",null,null,null,null,null,null,"to snad ne!",null,null,null,null,null,null,null,null,null,null," "]
["",null,null,null,null,null,null,"to snad ne!",null,null,null,null,null,null,null,null,null,null," "]
["",null,null,null,null,null,null,"to snad ne!",null,null,null,null,null,null,null,null,null,null," "]
["",null,null,null,null,null,null,"to snad ne!",null,null,null,null,null,null,null,null,null,null," "]
["",null,null,null,null,null,null,{"$f":"IF(S90<>\"Ž\",IF($O$2-D90>39,IF($O$2-D90>49,IF($O$2-D90>59,IF($O$2-D90>69,IF($O$2-D90>90,\"to snad ne!\",\"E\"),\"D\"),\"C\"),\"B\"),\"A\"),IF(S90=\"Ž\",IF($O$2-D90>34,IF($O$2-D90>44,IF($O$2-D90>90,\"to snad ne!\",\"H\"),\"G\"),\"F\")))","v":"to snad ne!"},null,null,null,null,null,null,null,null,null,null," "]
["",null,null,null,null,null,null,"to snad ne!",null,null,null,null,null,null,null,null,null,null," "]
["",null,null,null,null,null,null,"to snad ne!",null,null,null,null,null,null,null,null,null,null," "]
["",null,null,null,null,null,null,"to snad ne!",null,null,null,null,null,null,null,null,null,null," "]
["",null,null,null,null,null,null,"to snad ne!",null,null,null,null,null,null,null,null,null,null," "]
["",null,null,null,null,null,null,"to snad ne!",null,null,null,null,null,null,null,null,null,null," "]
["",null,null,null,null,null,null,"to snad ne!",null,null,null,null,null,null,null,null,null,null," "]
["",null,null,null,null,null,null,"to snad ne!",null,null,null,null,null,null,null,null,null,null," "]
["",null,null,null,null,null,null,"to snad ne!",null,null,null,null,null,null,null,null,null,null," "]
["",null,null,null,null,null,null,"to snad ne!",null,null,null,null,null,null,null,null,null,null,{"$f":"IF(LEN(B99)=0,\" \",IF(MID(B99,LEN(B99),1)=\"á\",\"Ž\",\"M\"))","v":" "}]
["",null,null,null,null,null,null,"to snad ne!",null,null,null,null,null,null,null,null,null,null," "]
["",null,null,null,null,null,null,"to snad ne!",null,null,null,null,null,null,null,null,null,null," "]
["",null,null,null,null,null,null,"to snad ne!",null,null,null,null,null,null,null,null,null,null," "]
["",null,null,null,null,null,null,"to snad ne!",null,null,null,null,null,null,null,null,null,null," "]
["",null,null,null,null,null,null,"to snad ne!",null,null,null,null,null,null,null,null,null,null," "]
["",null,null,null,null,null,null,"to snad ne!",null,null,null,null,null,null,null,null,null,null," "]
["",null,null,null,null,null,null,"to snad ne!",null,null,null,null,null,null,null,null,null,null," "]
["",null,null,null,null,null,null,"to snad ne!",null,null,null,null,null,null,null,null,null,null," "]
["",null,null,null,null,null,null,"to snad ne!",null,null,null,null,null,null,null,null,null,null," "]
["",null,null,null,null,null,null,"to snad ne!",null,null,null,null,null,null,null,null,null,null," "]
["",null,null,null,null,null,null,"to snad ne!",null,null,null,null,null,null,null,null,null,null," "]
["",null,null,null,null,null,null,"to snad ne!",null,null,null,null,null,null,null,null,null,null," "]
["",null,null,null,null,null,null,"to snad ne!",null,null,null,null,null,null,null,null,null,null," "]
["",null,null,null,null,null,null,"to snad ne!",null,null,null,null,null,null,null,null,null,null," "]
["",null,null,null,null,null,null,"to snad ne!",null,null,null,null,null,null,null,null,null,null," "]
["",null,null,null,null,null,null,"to snad ne!",null,null,null,null,null,null,null,null,null,null," "]
["",null,null,null,null,null,null,"to snad ne!",null,null,null,null,null,null,null,null,null,null," "]
["",null,null,null,null,null,null,"to snad ne!",null,null,null,null,null,null,null,null,null,null," "]
["",null,null,null,null,null,null,"to snad ne!",null,null,null,null,null,null,null,null,null,null," "]
["",null,null,null,null,null,null,"to snad ne!",null,null,null,null,null,null,null,null,null,null," "]
["",null,null,null,null,null,null,"to snad ne!",null,null,null,null,null,null,null,null,null,null," "]
["",null,null,null,null,null,null,"to snad ne!",null,null,null,null,null,null,null,null,null,null," "]
["",null,null,null,null,null,null,"to snad ne!",null,null,null,null,null,null,null,null,null,null," "]
["",null,null,null,null,null,null,"to snad ne!",null,null,null,null,null,null,null,null,null,null," "]
["",null,null,null,null,null,null,"to snad ne!",null,null,null,null,null,null,null,null,null,null," "]
["",null,null,null,null,null,null,"to snad ne!",null,null,null,null,null,null,null,null,null,null," "]
["",null,null,null,null,null,null,"to snad ne!",null,null,null,null,null,null,null,null,null,null," "]
["",null,null,null,null,null,null,"to snad ne!",null,null,null,null,null,null,null,null,null,null," "]
["",null,null,null,null,null,null,"to snad ne!",null,null,null,null,null,null,null,null,null,null," "]
["",null,null,null,null,null,null,"to snad ne!",null,null,null,null,null,null,null,null,null,null," "]
["",null,null,null,null,null,null,"to snad ne!",null,null,null,null,null,null,null,null,null,null," "]
["",null,null,null,null,null,null,"to snad ne!",null,null,null,null,null,null,null,null,null,null,{"$f":"IF(LEN(B131)=0,\" \",IF(MID(B131,LEN(B131),1)=\"á\",\"Ž\",\"M\"))","v":" "}]
["",null,null,null,null,null,null,"to snad ne!",null,null,null,null,null,null,null,null,null,null," "]
[{"$f":"IF(B133<>0,A132+1,\"\")","v":""},null,null,null,null,null,null,"to snad ne!",null,null,null,null,null,null,null,null,null,null," "]
["",null,null,null,null,null,null,"to snad ne!",null,null,null,null,null,null,null,null,null,null," "]
["",null,null,null,null,null,null,"to snad ne!",null,null,null,null,null,null,null,null,null,null," "]
["",null,null,null,null,null,null,"to snad ne!",null,null,null,null,null,null,null,null,null,null," "]
["",null,null,null,null,null,null,"to snad ne!",null,null,null,null,null,null,null,null,null,null," "]
["",null,null,null,null,null,null,"to snad ne!",null,null,null,null,null,null,null,null,null,null," "]
["",null,null,null,null,null,null,"to snad ne!",null,null,null,null,null,null,null,null,null,null," "]
["",null,null,null,null,null,null,"to snad ne!",null,null,null,null,null,null,null,null,null,null," "]
["",null,null,null,null,null,null,"to snad ne!",null,null,null,null,null,null,null,null,null,null," "]
["",null,null,null,null,null,null,"to snad ne!",null,null,null,null,null,null,null,null,null,null," "]
["",null,null,null,null,null,null,"to snad ne!",null,null,null,null,null,null,null,null,null,null," "]
["",null,null,null,null,null,null,"to snad ne!",null,null,null,null,null,null,null,null,null,null," "]
["",null,null,null,null,null,null,"to snad ne!",null,null,null,null,null,null,null,null,null,null," "]
["",null,null,null,null,null,null,"to snad ne!",null,null,null,null,null,null,null,null,null,null," "]
["",null,null,null,null,null,null,"to snad ne!",null,null,null,null,null,null,null,null,null,null," "]
["",null,null,null,null,null,null,"to snad ne!",null,null,null,null,null,null,null,null,null,null," "]
["",null,null,null,null,null,null,"to snad ne!",null,null,null,null,null,null,null,null,null,null," "]
["",null,null,null,null,null,null,"to snad ne!",null,null,null,null,null,null,null,null,null,null," "]
["",null,null,null,null,null,null,"to snad ne!",null,null,null,null,null,null,null,null,null,null," "]
["",null,null,null,null,null,null,"to snad ne!",null,null,null,null,null,null,null,null,null,null," "]

{"sheet":"Startovní listina","index":1,"n_rows":141,"n_cols":12,"rows_kept":141,"cut":false,"hidden":false,"merged":[[4,11,11,11],[0,0,0,6],[2,0,2,6],[1,0,1,6],[1,8,2,9]]}
[{"$f":"\"Startovní listina - Bystřickem kolem Vírské přehrady \"&'Prezenční listina'!O2","v":"Startovní listina - Bystřickem kolem Vírské přehrady 2019"}]
[{"$f":"'Prezenční listina'!O2-2004&\". ročník\"","v":"15. ročník"},null,null,null,null,null,null,null,"Počet přihlášených v jednotlivých kategoriích"]
["2019-05-25",null,null,null,null,null,null,null,null,null,null,"Celkem startujících"]
[null,"Startovní číslo","Příjmení","Jméno","Narození","Oddíl / Bydliště","Kategorie"]
[1,{"$f":"IF('Prezenční listina'!F15=0,\"\",'Prezenční listina'!F15)","v":1},{"$f":"IF('Prezenční listina'!F15=0,\"\",'Prezenční listina'!B15)","v":"Klement"},{"$f":"IF('Prezenční listina'!F15=0,\"\",'Prezenční listina'!C15)","v":"Pavel"},{"$f":"IF('Prezenční listina'!F15=0,\"\",'Prezenční listina'!D15)","v":1972},{"$f":"IF('Prezenční listina'!F15=0,\"\",'Prezenční listina'!E15)","v":"Atletic Třebíč"},{"$f":"IF('Prezenční listina'!F15=0,\"\",'Prezenční listina'!H15)","v":"B"},null,"A:",{"$f":"COUNTIF($G$5:$G$141,\"A\")","v":8},null,{"$f":"COUNT(B5:B141)","v":42}]
[{"$f":"IF(C6=\"\",\"\",A5+1)","v":2},{"$f":"IF('Prezenční listina'!F4=0,\"\",'Prezenční listina'!F4)","v":2},{"$f":"IF('Prezenční listina'!F4=0,\"\",'Prezenční listina'!B4)","v":"Caha"},{"$f":"IF('Prezenční listina'!F4=0,\"\",'Prezenční listina'!C4)","v":"Zbyněk"},{"$f":"IF('Prezenční listina'!F4=0,\"\",'Prezenční listina'!D4)","v":1984},{"$f":"IF('Prezenční listina'!F4=0,\"\",'Prezenční listina'!E4)","v":"Atletic Třebíč"},{"$f":"IF('Prezenční listina'!F4=0,\"\",'Prezenční listina'!H4)","v":"A"},null,"B:",{"$f":"COUNTIF($G$5:$G$141,\"B\")","v":13}]
[3,{"$f":"IF('Prezenční listina'!F7=0,\"\",'Prezenční listina'!F7)","v":3},{"$f":"IF('Prezenční listina'!F7=0,\"\",'Prezenční listina'!B7)","v":"Hanák"},{"$f":"IF('Prezenční listina'!F7=0,\"\",'Prezenční listina'!C7)","v":"Jakub"},{"$f":"IF('Prezenční listina'!F7=0,\"\",'Prezenční listina'!D7)","v":1986},{"$f":"IF('Prezenční listina'!F7=0,\"\",'Prezenční listina'!E7)","v":"Plant Powered Runners (Vír)"},{"$f":"IF('Prezenční listina'!F7=0,\"\",'Prezenční listina'!H7)","v":"A"},null,"C:",{"$f":"COUNTIF($G$5:$G$141,\"C\")","v":9}]
[4,{"$f":"IF('Prezenční listina'!F5=0,\"\",'Prezenční listina'!F5)","v":4},{"$f":"IF('Prezenční listina'!F5=0,\"\",'Prezenční listina'!B5)","v":"Czerný"},{"$f":"IF('Prezenční listina'!F5=0,\"\",'Prezenční listina'!C5)","v":"Pavel"},{"$f":"IF('Prezenční listina'!F5=0,\"\",'Prezenční listina'!D5)","v":1981},{"$f":"IF('Prezenční listina'!F5=0,\"\",'Prezenční listina'!E5)","v":"Never Alone (Brno)"},{"$f":"IF('Prezenční listina'!F5=0,\"\",'Prezenční listina'!H5)","v":"A"},null,"D:",{"$f":"COUNTIF($G$5:$G$141,\"D\")","v":4}]
[5,{"$f":"IF('Prezenční listina'!F44=0,\"\",'Prezenční listina'!F44)","v":5},{"$f":"IF('Prezenční listina'!F44=0,\"\",'Prezenční listina'!B44)","v":"Pozler"},{"$f":"IF('Prezenční listina'!F44=0,\"\",'Prezenční listina'!C44)","v":"Jiří"},{"$f":"IF('Prezenční listina'!F44=0,\"\",'Prezenční listina'!D44)","v":1983},{"$f":"IF('Prezenční listina'!F44=0,\"\",'Prezenční listina'!E44)","v":"Never Alone (Brno)"},{"$f":"IF('Prezenční listina'!F44=0,\"\",'Prezenční listina'!H44)","v":"A"},null,"E:",{"$f":"COUNTIF($G$5:$G$141,\"E\")","v":1}]
[6,{"$f":"IF('Prezenční listina'!F12=0,\"\",'Prezenční listina'!F12)","v":6},{"$f":"IF('Prezenční listina'!F12=0,\"\",'Prezenční listina'!B12)","v":"Hübner"},{"$f":"IF('Prezenční listina'!F12=0,\"\",'Prezenční listina'!C12)","v":"Tomáš"},{"$f":"IF('Prezenční listina'!F12=0,\"\",'Prezenční listina'!D12)","v":1979},{"$f":"IF('Prezenční listina'!F12=0,\"\",'Prezenční listina'!E12)","v":"SDH Bolešín"},{"$f":"IF('Prezenční listina'!F12=0,\"\",'Prezenční listina'!H12)","v":"B"},null,"F:",{"$f":"COUNTIF($G$5:$G$141,\"F\")","v":1}]
[7,{"$f":"IF('Prezenční listina'!F45=0,\"\",'Prezenční listina'!F45)","v":7},{"$f":"IF('Prezenční listina'!F45=0,\"\",'Prezenční listina'!B45)","v":"Koutník"},{"$f":"IF('Prezenční listina'!F45=0,\"\",'Prezenční listina'!C45)","v":"Lumír"},{"$f":"IF('Prezenční listina'!F45=0,\"\",'Prezenční listina'!D45)","v":1967},{"$f":"IF('Prezenční listina'!F45=0,\"\",'Prezenční listina'!E45)","v":"A.O.Spartak Vrchlabí"},{"$f":"IF('Prezenční listina'!F45=0,\"\",'Prezenční listina'!H45)","v":"C"},null,"G:",{"$f":"COUNTIF($G$5:$G$141,\"G\")","v":1}]
[8,{"$f":"IF('Prezenční listina'!F46=0,\"\",'Prezenční listina'!F46)","v":8},{"$f":"IF('Prezenční listina'!F46=0,\"\",'Prezenční listina'!B46)","v":"Podsedník"},{"$f":"IF('Prezenční listina'!F46=0,\"\",'Prezenční listina'!C46)","v":"Marek"},{"$f":"IF('Prezenční listina'!F46=0,\"\",'Prezenční listina'!D46)","v":1985},{"$f":"IF('Prezenční listina'!F46=0,\"\",'Prezenční listina'!E46)","v":"Brno"},{"$f":"IF('Prezenční listina'!F46=0,\"\",'Prezenční listina'!H46)","v":"A"},null,"H:",{"$f":"COUNTIF($G$5:$G$141,\"H\")","v":5}]
[9,{"$f":"IF('Prezenční listina'!F9=0,\"\",'Prezenční listina'!F9)","v":9},{"$f":"IF('Prezenční listina'!F9=0,\"\",'Prezenční listina'!B9)","v":"Holý"},{"$f":"IF('Prezenční listina'!F9=0,\"\",'Prezenční listina'!C9)","v":"Josef"},{"$f":"IF('Prezenční listina'!F9=0,\"\",'Prezenční listina'!D9)","v":1941},{"$f":"IF('Prezenční listina'!F9=0,\"\",'Prezenční listina'!E9)","v":"AC Moravská Slavia Brno"},{"$f":"IF('Prezenční listina'!F9=0,\"\",'Prezenční listina'!H9)","v":"E"}]
[10,{"$f":"IF('Prezenční listina'!F30=0,\"\",'Prezenční listina'!F30)","v":10},{"$f":"IF('Prezenční listina'!F30=0,\"\",'Prezenční listina'!B30)","v":"Novotný"},{"$f":"IF('Prezenční listina'!F30=0,\"\",'Prezenční listina'!C30)","v":"Libor"},{"$f":"IF('Prezenční listina'!F30=0,\"\",'Prezenční listina'!D30)","v":1961},{"$f":"IF('Prezenční listina'!F30=0,\"\",'Prezenční listina'!E30)","v":"Kuřim"},{"$f":"IF('Prezenční listina'!F30=0,\"\",'Prezenční listina'!H30)","v":"C"}]
[11,{"$f":"IF('Prezenční listina'!F27=0,\"\",'Prezenční listina'!F27)","v":11},{"$f":"IF('Prezenční listina'!F27=0,\"\",'Prezenční listina'!B27)","v":"Mareš"},{"$f":"IF('Prezenční listina'!F27=0,\"\",'Prezenční listina'!C27)","v":"Bohumil"},{"$f":"IF('Prezenční listina'!F27=0,\"\",'Prezenční listina'!D27)","v":1951},{"$f":"IF('Prezenční listina'!F27=0,\"\",'Prezenční listina'!E27)","v":"Posilovna Průvan Brno"},{"$f":"IF('Prezenční listina'!F27=0,\"\",'Prezenční listina'!H27)","v":"D"}]
[12,{"$f":"IF('Prezenční listina'!F20=0,\"\",'Prezenční listina'!F20)","v":12},{"$f":"IF('Prezenční listina'!F20=0,\"\",'Prezenční listina'!B20)","v":"Krátký"},{"$f":"IF('Prezenční listina'!F20=0,\"\",'Prezenční listina'!C20)","v":"Josef"},{"$f":"IF('Prezenční listina'!F20=0,\"\",'Prezenční listina'!D20)","v":1965},{"$f":"IF('Prezenční listina'!F20=0,\"\",'Prezenční listina'!E20)","v":"Hvězda Pardubice"},{"$f":"IF('Prezenční listina'!F20=0,\"\",'Prezenční listina'!H20)","v":"C"}]
[13,{"$f":"IF('Prezenční listina'!F32=0,\"\",'Prezenční listina'!F32)","v":13},{"$f":"IF('Prezenční listina'!F32=0,\"\",'Prezenční listina'!B32)","v":"Petržílek"},{"$f":"IF('Prezenční listina'!F32=0,\"\",'Prezenční listina'!C32)","v":"Zdeněk"},{"$f":"IF('Prezenční listina'!F32=0,\"\",'Prezenční listina'!D32)","v":1955},{"$f":"IF('Prezenční listina'!F32=0,\"\",'Prezenční listina'!E32)","v":"KRB Chrudim"},{"$f":"IF('Prezenční listina'!F32=0,\"\",'Prezenční listina'!H32)","v":"D"}]
[14,{"$f":"IF('Prezenční listina'!F3=0,\"\",'Prezenční listina'!F3)","v":14},{"$f":"IF('Prezenční listina'!F3=0,\"\",'Prezenční listina'!B3)","v":"Brožek"},{"$f":"IF('Prezenční listina'!F3=0,\"\",'Prezenční listina'!C3)","v":"Radmil"},{"$f":"IF('Prezenční listina'!F3=0,\"\",'Prezenční listina'!D3)","v":1954},{"$f":"IF('Prezenční listina'!F3=0,\"\",'Prezenční listina'!E3)","v":"KRB Chrudim"},{"$f":"IF('Prezenční listina'!F3=0,\"\",'Prezenční listina'!H3)","v":"D"}]
[15,{"$f":"IF('Prezenční listina'!F41=0,\"\",'Prezenční listina'!F41)","v":15},{"$f":"IF('Prezenční listina'!F41=0,\"\",'Prezenční listina'!B41)","v":"Vránek"},{"$f":"IF('Prezenční listina'!F41=0,\"\",'Prezenční listina'!C41)","v":"David"},{"$f":"IF('Prezenční listina'!F41=0,\"\",'Prezenční listina'!D41)","v":1978},{"$f":"IF('Prezenční listina'!F41=0,\"\",'Prezenční listina'!E41)","v":"Brno"},{"$f":"IF('Prezenční listina'!F41=0,\"\",'Prezenční listina'!H41)","v":"B"}]
[16,{"$f":"IF('Prezenční listina'!F39=0,\"\",'Prezenční listina'!F39)","v":16},{"$f":"IF('Prezenční listina'!F39=0,\"\",'Prezenční listina'!B39)","v":"Vintrlík"},{"$f":"IF('Prezenční listina'!F39=0,\"\",'Prezenční listina'!C39)","v":"Martin"},{"$f":"IF('Prezenční listina'!F39=0,\"\",'Prezenční listina'!D39)","v":1977},{"$f":"IF('Prezenční listina'!F39=0,\"\",'Prezenční listina'!E39)","v":"Triatlon Křepice"},{"$f":"IF('Prezenční listina'!F39=0,\"\",'Prezenční listina'!H39)","v":"B"}]
[17,{"$f":"IF('Prezenční listina'!F47=0,\"\",'Prezenční listina'!F47)","v":17},{"$f":"IF('Prezenční listina'!F47=0,\"\",'Prezenční listina'!B47)","v":"Nádhera"},{"$f":"IF('Prezenční listina'!F47=0,\"\",'Prezenční listina'!C47)","v":"Petr"},{"$f":"IF('Prezenční listina'!F47=0,\"\",'Prezenční listina'!D47)","v":1967},{"$f":"IF('Prezenční listina'!F47=0,\"\",'Prezenční listina'!E47)","v":"Hradec Králové"},{"$f":"IF('Prezenční listina'!F47=0,\"\",'Prezenční listina'!H47)","v":"C"}]
[18,{"$f":"IF('Prezenční listina'!F48=0,\"\",'Prezenční listina'!F48)","v":18},{"$f":"IF('Prezenční listina'!F48=0,\"\",'Prezenční listina'!B48)","v":"Nádherová"},{"$f":"IF('Prezenční listina'!F48=0,\"\",'Prezenční listina'!C48)","v":"Hana"},{"$f":"IF('Prezenční listina'!F48=0,\"\",'Prezenční listina'!D48)","v":1968},{"$f":"IF('Prezenční listina'!F48=0,\"\",'Prezenční listina'!E48)","v":"Hradec Králové"},{"$f":"IF('Prezenční listina'!F48=0,\"\",'Prezenční listina'!H48)","v":"H"}]
[19,{"$f":"IF('Prezenční listina'!F49=0,\"\",'Prezenční listina'!F49)","v":19},{"$f":"IF('Prezenční listina'!F49=0,\"\",'Prezenční listina'!B49)","v":"Podmelová"},{"$f":"IF('Prezenční listina'!F49=0,\"\",'Prezenční listina'!C49)","v":"Vilma"},{"$f":"IF('Prezenční listina'!F49=0,\"\",'Prezenční listina'!D49)","v":1962},{"$f":"IF('Prezenční listina'!F49=0,\"\",'Prezenční listina'!E49)","v":"ČAU (Brno)"},{"$f":"IF('Prezenční listina'!F49=0,\"\",'Prezenční listina'!H49)","v":"H"}]
[20,{"$f":"IF('Prezenční listina'!F50=0,\"\",'Prezenční listina'!F50)","v":20},{"$f":"IF('Prezenční listina'!F50=0,\"\",'Prezenční listina'!B50)","v":"Crha"},{"$f":"IF('Prezenční listina'!F50=0,\"\",'Prezenční listina'!C50)","v":"Radek"},{"$f":"IF('Prezenční listina'!F50=0,\"\",'Prezenční listina'!D50)","v":1979},{"$f":"IF('Prezenční listina'!F50=0,\"\",'Prezenční listina'!E50)","v":"Vidonín 10"},{"$f":"IF('Prezenční listina'!F50=0,\"\",'Prezenční listina'!H50)","v":"B"}]
[21,{"$f":"IF('Prezenční listina'!F6=0,\"\",'Prezenční listina'!F6)","v":21},{"$f":"IF('Prezenční listina'!F6=0,\"\",'Prezenční listina'!B6)","v":"Glier"},{"$f":"IF('Prezenční listina'!F6=0,\"\",'Prezenční listina'!C6)","v":"Michal"},{"$f":"IF('Prezenční listina'!F6=0,\"\",'Prezenční listina'!D6)","v":1982},{"$f":"IF('Prezenční listina'!F6=0,\"\",'Prezenční listina'!E6)","v":"SDH Doubravník"},{"$f":"IF('Prezenční listina'!F6=0,\"\",'Prezenční listina'!H6)","v":"A"}]
[22,{"$f":"IF('Prezenční listina'!F42=0,\"\",'Prezenční listina'!F42)","v":22},{"$f":"IF('Prezenční listina'!F42=0,\"\",'Prezenční listina'!B42)","v":"Zemánková"},{"$f":"IF('Prezenční listina'!F42=0,\"\",'Prezenční listina'!C42)","v":"Eva"},{"$f":"IF('Prezenční listina'!F42=0,\"\",'Prezenční listina'!D42)","v":1991},{"$f":"IF('Prezenční listina'!F42=0,\"\",'Prezenční listina'!E42)","v":"AC Moravská Slavia Brno"},{"$f":"IF('Prezenční listina'!F42=0,\"\",'Prezenční listina'!H42)","v":"F"}]
[23,{"$f":"IF('Prezenční listina'!F19=0,\"\",'Prezenční listina'!F19)","v":23},{"$f":"IF('Prezenční listina'!F19=0,\"\",'Prezenční listina'!B19)","v":"Koutský"},{"$f":"IF('Prezenční listina'!F19=0,\"\",'Prezenční listina'!C19)","v":"Tomáš"},{"$f":"IF('Prezenční listina'!F19=0,\"\",'Prezenční listina'!D19)","v":1987},{"$f":"IF('Prezenční listina'!F19=0,\"\",'Prezenční listina'!E19)","v":"Ledová stěna Vír"},{"$f":"IF('Prezenční listina'!F19=0,\"\",'Prezenční listina'!H19)","v":"A"}]
[24,{"$f":"IF('Prezenční listina'!F28=0,\"\",'Prezenční listina'!F28)","v":24},{"$f":"IF('Prezenční listina'!F28=0,\"\",'Prezenční listina'!B28)","v":"Matulová"},{"$f":"IF('Prezenční listina'!F28=0,\"\",'Prezenční listina'!C28)","v":"Martina"},{"$f":"IF('Prezenční listina'!F28=0,\"\",'Prezenční listina'!D28)","v":1972},{"$f":"IF('Prezenční listina'!F28=0,\"\",'Prezenční listina'!E28)","v":"Brno"},{"$f":"IF('Prezenční listina'!F28=0,\"\",'Prezenční listina'!H28)","v":"H"}]
[25,{"$f":"IF('Prezenční listina'!F26=0,\"\",'Prezenční listina'!F26)","v":25},{"$f":"IF('Prezenční listina'!F26=0,\"\",'Prezenční listina'!B26)","v":"Lorenzová"},{"$f":"IF('Prezenční listina'!F26=0,\"\",'Prezenční listina'!C26)","v":"Dana"},{"$f":"IF('Prezenční listina'!F26=0,\"\",'Prezenční listina'!D26)","v":1968},{"$f":"IF('Prezenční listina'!F26=0,\"\",'Prezenční listina'!E26)","v":"Nové Město na Moravě"},{"$f":"IF('Prezenční listina'!F26=0,\"\",'Prezenční listina'!H26)","v":"H"}]
[26,{"$f":"IF('Prezenční listina'!F51=0,\"\",'Prezenční listina'!F51)","v":26},{"$f":"IF('Prezenční listina'!F51=0,\"\",'Prezenční listina'!B51)","v":"Kropáček"},{"$f":"IF('Prezenční listina'!F51=0,\"\",'Prezenční listina'!C51)","v":"Jaroslav"},{"$f":"IF('Prezenční listina'!F51=0,\"\",'Prezenční listina'!D51)","v":1970},{"$f":"IF('Prezenční listina'!F51=0,\"\",'Prezenční listina'!E51)","v":"Brno"},{"$f":"IF('Prezenční listina'!F51=0,\"\",'Prezenční listina'!H51)","v":"B"}]
[27,{"$f":"IF('Prezenční listina'!F13=0,\"\",'Prezenční listina'!F13)","v":27},{"$f":"IF('Prezenční listina'!F13=0,\"\",'Prezenční listina'!B13)","v":"Hýbl"},{"$f":"IF('Prezenční listina'!F13=0,\"\",'Prezenční listina'!C13)","v":"Jiří"},{"$f":"IF('Prezenční listina'!F13=0,\"\",'Prezenční listina'!D13)","v":1967},{"$f":"IF('Prezenční listina'!F13=0,\"\",'Prezenční listina'!E13)","v":"Hrušovany u Brna"},{"$f":"IF('Prezenční listina'!F13=0,\"\",'Prezenční listina'!H13)","v":"C"}]
[28,{"$f":"IF('Prezenční listina'!F36=0,\"\",'Prezenční listina'!F36)","v":28},{"$f":"IF('Prezenční listina'!F36=0,\"\",'Prezenční listina'!B36)","v":"Svoboda"},{"$f":"IF('Prezenční listina'!F36=0,\"\",'Prezenční listina'!C36)","v":"Petr"},{"$f":"IF('Prezenční listina'!F36=0,\"\",'Prezenční listina'!D36)","v":1968},{"$f":"IF('Prezenční listina'!F36=0,\"\",'Prezenční listina'!E36)","v":"AC Moravská Slavia Brno"},{"$f":"IF('Prezenční listina'!F36=0,\"\",'Prezenční listina'!H36)","v":"C"}]
[29,{"$f":"IF('Prezenční listina'!F38=0,\"\",'Prezenční listina'!F38)","v":29},{"$f":"IF('Prezenční listina'!F38=0,\"\",'Prezenční listina'!B38)","v":"Šimunek"},{"$f":"IF('Prezenční listina'!F38=0,\"\",'Prezenční listina'!C38)","v":"Martin"},{"$f":"IF('Prezenční listina'!F38=0,\"\",'Prezenční listina'!D38)","v":1966},{"$f":"IF('Prezenční listina'!F38=0,\"\",'Prezenční listina'!E38)","v":"Botanka Running (Modřice)"},{"$f":"IF('Prezenční listina'!F38=0,\"\",'Prezenční listina'!H38)","v":"C"}]
[30,{"$f":"IF('Prezenční listina'!F52=0,\"\",'Prezenční listina'!F52)","v":30},{"$f":"IF('Prezenční listina'!F52=0,\"\",'Prezenční listina'!B52)","v":"Faja"},{"$f":"IF('Prezenční listina'!F52=0,\"\",'Prezenční listina'!C52)","v":"Ondřej"},{"$f":"IF('Prezenční listina'!F52=0,\"\",'Prezenční listina'!D52)","v":1976},{"$f":"IF('Prezenční listina'!F52=0,\"\",'Prezenční listina'!E52)","v":"Brno"},{"$f":"IF('Prezenční listina'!F52=0,\"\",'Prezenční listina'!H52)","v":"B"}]
[31,{"$f":"IF('Prezenční listina'!F33=0,\"\",'Prezenční listina'!F33)","v":31},{"$f":"IF('Prezenční listina'!F33=0,\"\",'Prezenční listina'!B33)","v":"Prášek"},{"$f":"IF('Prezenční listina'!F33=0,\"\",'Prezenční listina'!C33)","v":"Ondřej"},{"$f":"IF('Prezenční listina'!F33=0,\"\",'Prezenční listina'!D33)","v":1978},{"$f":"IF('Prezenční listina'!F33=0,\"\",'Prezenční listina'!E33)","v":"Kajak VUT (Brno)"},{"$f":"IF('Prezenční listina'!F33=0,\"\",'Prezenční listina'!H33)","v":"B"}]
[32,{"$f":"IF('Prezenční listina'!F40=0,\"\",'Prezenční listina'!F40)","v":32},{"$f":"IF('Prezenční listina'!F40=0,\"\",'Prezenční listina'!B40)","v":"Viščor"},{"$f":"IF('Prezenční listina'!F40=0,\"\",'Prezenční listina'!C40)","v":"Pavel"},{"$f":"IF('Prezenční listina'!F40=0,\"\",'Prezenční listina'!D40)","v":1974},{"$f":"IF('Prezenční listina'!F40=0,\"\",'Prezenční listina'!E40)","v":"Brno"},{"$f":"IF('Prezenční listina'!F40=0,\"\",'Prezenční listina'!H40)","v":"B"}]
[33,{"$f":"IF('Prezenční listina'!F53=0,\"\",'Prezenční listina'!F53)","v":33},{"$f":"IF('Prezenční listina'!F53=0,\"\",'Prezenční listina'!B53)","v":"Orálek"},{"$f":"IF('Prezenční listina'!F53=0,\"\",'Prezenční listina'!C53)","v":"Daniel"},{"$f":"IF('Prezenční listina'!F53=0,\"\",'Prezenční listina'!D53)","v":1970},{"$f":"IF('Prezenční listina'!F53=0,\"\",'Prezenční listina'!E53)","v":"Behejbrno.com"},{"$f":"IF('Prezenční listina'!F53=0,\"\",'Prezenční listina'!H53)","v":"B"}]
[34,{"$f":"IF('Prezenční listina'!F29=0,\"\",'Prezenční listina'!F29)","v":34},{"$f":"IF('Prezenční listina'!F29=0,\"\",'Prezenční listina'!B29)","v":"Nosek"},{"$f":"IF('Prezenční listina'!F29=0,\"\",'Prezenční listina'!C29)","v":"Pavel "},{"$f":"IF('Prezenční listina'!F29=0,\"\",'Prezenční listina'!D29)","v":1965},{"$f":"IF('Prezenční listina'!F29=0,\"\",'Prezenční listina'!E29)","v":"ASK Slavkov"},{"$f":"IF('Prezenční listina'!F29=0,\"\",'Prezenční listina'!H29)","v":"C"}]
[{"$f":"IF(C39=\"\",\"\",A38+1)","v":35},{"$f":"IF('Prezenční listina'!F37=0,\"\",'Prezenční listina'!F37)","v":35},{"$f":"IF('Prezenční listina'!F37=0,\"\",'Prezenční listina'!B37)","v":"Svoboda"},{"$f":"IF('Prezenční listina'!F37=0,\"\",'Prezenční listina'!C37)","v":"Vojtěch"},{"$f":"IF('Prezenční listina'!F37=0,\"\",'Prezenční listina'!D37)","v":1994},{"$f":"IF('Prezenční listina'!F37=0,\"\",'Prezenční listina'!E37)","v":"Velké Meziříčí"},{"$f":"IF('Prezenční listina'!F37=0,\"\",'Prezenční listina'!H37)","v":"A"}]
[{"$f":"IF(C40=\"\",\"\",A39+1)","v":36},{"$f":"IF('Prezenční listina'!F16=0,\"\",'Prezenční listina'!F16)","v":36},{"$f":"IF('Prezenční listina'!F16=0,\"\",'Prezenční listina'!B16)","v":"Klinecká"},{"$f":"IF('Prezenční listina'!F16=0,\"\",'Prezenční listina'!C16)","v":"Jana"},{"$f":"IF('Prezenční listina'!F16=0,\"\",'Prezenční listina'!D16)","v":1981},{"$f":"IF('Prezenční listina'!F16=0,\"\",'Prezenční listina'!E16)","v":"Hlinsko"},{"$f":"IF('Prezenční listina'!F16=0,\"\",'Prezenční listina'!H16)","v":"G"}]
[37,{"$f":"IF('Prezenční listina'!F21=0,\"\",'Prezenční listina'!F21)","v":37},{"$f":"IF('Prezenční listina'!F21=0,\"\",'Prezenční listina'!B21)","v":"Kratochvíl"},{"$f":"IF('Prezenční listina'!F21=0,\"\",'Prezenční listina'!C21)","v":"Jaroslav"},{"$f":"IF('Prezenční listina'!F21=0,\"\",'Prezenční listina'!D21)","v":1977},{"$f":"IF('Prezenční listina'!F21=0,\"\",'Prezenční listina'!E21)","v":"SDH Hluboké"},{"$f":"IF('Prezenční listina'!F21=0,\"\",'Prezenční listina'!H21)","v":"B"}]
[38,{"$f":"IF('Prezenční listina'!F17=0,\"\",'Prezenční listina'!F17)","v":38},{"$f":"IF('Prezenční listina'!F17=0,\"\",'Prezenční listina'!B17)","v":"Komárková"},{"$f":"IF('Prezenční listina'!F17=0,\"\",'Prezenční listina'!C17)","v":"Zdeňka"},{"$f":"IF('Prezenční listina'!F17=0,\"\",'Prezenční listina'!D17)","v":1974},{"$f":"IF('Prezenční listina'!F17=0,\"\",'Prezenční listina'!E17)","v":"SDH Bolešín"},{"$f":"IF('Prezenční listina'!F17=0,\"\",'Prezenční listina'!H17)","v":"H"}]
[39,{"$f":"IF('Prezenční listina'!F54=0,\"\",'Prezenční listina'!F54)","v":39},{"$f":"IF('Prezenční listina'!F54=0,\"\",'Prezenční listina'!B54)","v":"Petrů"},{"$f":"IF('Prezenční listina'!F54=0,\"\",'Prezenční listina'!C54)","v":"Roman"},{"$f":"IF('Prezenční listina'!F54=0,\"\",'Prezenční listina'!D54)","v":1976},{"$f":"IF('Prezenční listina'!F54=0,\"\",'Prezenční listina'!E54)","v":"Oddíl 2015"},{"$f":"IF('Prezenční listina'!F54=0,\"\",'Prezenční listina'!H54)","v":"B"}]
[40,{"$f":"IF('Prezenční listina'!F43=0,\"\",'Prezenční listina'!F43)","v":40},{"$f":"IF('Prezenční listina'!F43=0,\"\",'Prezenční listina'!B43)","v":"Žák"},{"$f":"IF('Prezenční listina'!F43=0,\"\",'Prezenční listina'!C43)","v":"Miroslav"},{"$f":"IF('Prezenční listina'!F43=0,\"\",'Prezenční listina'!D43)","v":1965},{"$f":"IF('Prezenční listina'!F43=0,\"\",'Prezenční listina'!E43)","v":"Stříbrné Hory"},{"$f":"IF('Prezenční listina'!F43=0,\"\",'Prezenční listina'!H43)","v":"C"}]
[41,{"$f":"IF('Prezenční listina'!F18=0,\"\",'Prezenční listina'!F18)","v":41},{"$f":"IF('Prezenční listina'!F18=0,\"\",'Prezenční listina'!B18)","v":"Konečný"},{"$f":"IF('Prezenční listina'!F18=0,\"\",'Prezenční listina'!C18)","v":"Libor"},{"$f":"IF('Prezenční listina'!F18=0,\"\",'Prezenční listina'!D18)","v":1971},{"$f":"IF('Prezenční listina'!F18=0,\"\",'Prezenční listina'!E18)","v":"Kuřim"},{"$f":"IF('Prezenční listina'!F18=0,\"\",'Prezenční listina'!H18)","v":"B"}]
[42,{"$f":"IF('Prezenční listina'!F34=0,\"\",'Prezenční listina'!F34)","v":42},{"$f":"IF('Prezenční listina'!F34=0,\"\",'Prezenční listina'!B34)","v":"Sedláček"},{"$f":"IF('Prezenční listina'!F34=0,\"\",'Prezenční listina'!C34)","v":"Svatopluk"},{"$f":"IF('Prezenční listina'!F34=0,\"\",'Prezenční listina'!D34)","v":1957},{"$f":"IF('Prezenční listina'!F34=0,\"\",'Prezenční listina'!E34)","v":"AC Moravská Slavia Brno"},{"$f":"IF('Prezenční listina'!F34=0,\"\",'Prezenční listina'!H34)","v":"D"}]
["",{"$f":"IF('Prezenční listina'!F79=0,\"\",'Prezenční listina'!F79)","v":""},{"$f":"IF('Prezenční listina'!F79=0,\"\",'Prezenční listina'!B79)","v":""},{"$f":"IF('Prezenční listina'!F79=0,\"\",'Prezenční listina'!C79)","v":""},{"$f":"IF('Prezenční listina'!F79=0,\"\",'Prezenční listina'!D79)","v":""},{"$f":"IF('Prezenční listina'!F79=0,\"\",'Prezenční listina'!E79)","v":""},{"$f":"IF('Prezenční listina'!F79=0,\"\",'Prezenční listina'!H79)","v":""}]
["",{"$f":"IF('Prezenční listina'!F78=0,\"\",'Prezenční listina'!F78)","v":""},{"$f":"IF('Prezenční listina'!F78=0,\"\",'Prezenční listina'!B78)","v":""},{"$f":"IF('Prezenční listina'!F78=0,\"\",'Prezenční listina'!C78)","v":""},{"$f":"IF('Prezenční listina'!F78=0,\"\",'Prezenční listina'!D78)","v":""},{"$f":"IF('Prezenční listina'!F78=0,\"\",'Prezenční listina'!E78)","v":""},{"$f":"IF('Prezenční listina'!F78=0,\"\",'Prezenční listina'!H78)","v":""}]
["",{"$f":"IF('Prezenční listina'!F77=0,\"\",'Prezenční listina'!F77)","v":""},{"$f":"IF('Prezenční listina'!F77=0,\"\",'Prezenční listina'!B77)","v":""},{"$f":"IF('Prezenční listina'!F77=0,\"\",'Prezenční listina'!C77)","v":""},{"$f":"IF('Prezenční listina'!F77=0,\"\",'Prezenční listina'!D77)","v":""},{"$f":"IF('Prezenční listina'!F77=0,\"\",'Prezenční listina'!E77)","v":""},{"$f":"IF('Prezenční listina'!F77=0,\"\",'Prezenční listina'!H77)","v":""}]
["",{"$f":"IF('Prezenční listina'!F76=0,\"\",'Prezenční listina'!F76)","v":""},{"$f":"IF('Prezenční listina'!F76=0,\"\",'Prezenční listina'!B76)","v":""},{"$f":"IF('Prezenční listina'!F76=0,\"\",'Prezenční listina'!C76)","v":""},{"$f":"IF('Prezenční listina'!F76=0,\"\",'Prezenční listina'!D76)","v":""},{"$f":"IF('Prezenční listina'!F76=0,\"\",'Prezenční listina'!E76)","v":""},{"$f":"IF('Prezenční listina'!F76=0,\"\",'Prezenční listina'!H76)","v":""}]
["",{"$f":"IF('Prezenční listina'!F75=0,\"\",'Prezenční listina'!F75)","v":""},{"$f":"IF('Prezenční listina'!F75=0,\"\",'Prezenční listina'!B75)","v":""},{"$f":"IF('Prezenční listina'!F75=0,\"\",'Prezenční listina'!C75)","v":""},{"$f":"IF('Prezenční listina'!F75=0,\"\",'Prezenční listina'!D75)","v":""},{"$f":"IF('Prezenční listina'!F75=0,\"\",'Prezenční listina'!E75)","v":""},{"$f":"IF('Prezenční listina'!F75=0,\"\",'Prezenční listina'!H75)","v":""}]
["",{"$f":"IF('Prezenční listina'!F8=0,\"\",'Prezenční listina'!F8)","v":""},{"$f":"IF('Prezenční listina'!F8=0,\"\",'Prezenční listina'!B8)","v":""},{"$f":"IF('Prezenční listina'!F8=0,\"\",'Prezenční listina'!C8)","v":""},{"$f":"IF('Prezenční listina'!F8=0,\"\",'Prezenční listina'!D8)","v":""},{"$f":"IF('Prezenční listina'!F8=0,\"\",'Prezenční listina'!E8)","v":""},{"$f":"IF('Prezenční listina'!F8=0,\"\",'Prezenční listina'!H8)","v":""}]
["",{"$f":"IF('Prezenční listina'!F10=0,\"\",'Prezenční listina'!F10)","v":""},{"$f":"IF('Prezenční listina'!F10=0,\"\",'Prezenční listina'!B10)","v":""},{"$f":"IF('Prezenční listina'!F10=0,\"\",'Prezenční listina'!C10)","v":""},{"$f":"IF('Prezenční listina'!F10=0,\"\",'Prezenční listina'!D10)","v":""},{"$f":"IF('Prezenční listina'!F10=0,\"\",'Prezenční listina'!E10)","v":""},{"$f":"IF('Prezenční listina'!F10=0,\"\",'Prezenční listina'!H10)","v":""}]
["",{"$f":"IF('Prezenční listina'!F11=0,\"\",'Prezenční listina'!F11)","v":""},{"$f":"IF('Prezenční listina'!F11=0,\"\",'Prezenční listina'!B11)","v":""},{"$f":"IF('Prezenční listina'!F11=0,\"\",'Prezenční listina'!C11)","v":""},{"$f":"IF('Prezenční listina'!F11=0,\"\",'Prezenční listina'!D11)","v":""},{"$f":"IF('Prezenční listina'!F11=0,\"\",'Prezenční listina'!E11)","v":""},{"$f":"IF('Prezenční listina'!F11=0,\"\",'Prezenční listina'!H11)","v":""}]
["",{"$f":"IF('Prezenční listina'!F14=0,\"\",'Prezenční listina'!F14)","v":""},{"$f":"IF('Prezenční listina'!F14=0,\"\",'Prezenční listina'!B14)","v":""},{"$f":"IF('Prezenční listina'!F14=0,\"\",'Prezenční listina'!C14)","v":""},{"$f":"IF('Prezenční listina'!F14=0,\"\",'Prezenční listina'!D14)","v":""},{"$f":"IF('Prezenční listina'!F14=0,\"\",'Prezenční listina'!E14)","v":""},{"$f":"IF('Prezenční listina'!F14=0,\"\",'Prezenční listina'!H14)","v":""}]
["",{"$f":"IF('Prezenční listina'!F22=0,\"\",'Prezenční listina'!F22)","v":""},{"$f":"IF('Prezenční listina'!F22=0,\"\",'Prezenční listina'!B22)","v":""},{"$f":"IF('Prezenční listina'!F22=0,\"\",'Prezenční listina'!C22)","v":""},{"$f":"IF('Prezenční listina'!F22=0,\"\",'Prezenční listina'!D22)","v":""},{"$f":"IF('Prezenční listina'!F22=0,\"\",'Prezenční listina'!E22)","v":""},{"$f":"IF('Prezenční listina'!F22=0,\"\",'Prezenční listina'!H22)","v":""}]
["",{"$f":"IF('Prezenční listina'!F23=0,\"\",'Prezenční listina'!F23)","v":""},{"$f":"IF('Prezenční listina'!F23=0,\"\",'Prezenční listina'!B23)","v":""},{"$f":"IF('Prezenční listina'!F23=0,\"\",'Prezenční listina'!C23)","v":""},{"$f":"IF('Prezenční listina'!F23=0,\"\",'Prezenční listina'!D23)","v":""},{"$f":"IF('Prezenční listina'!F23=0,\"\",'Prezenční listina'!E23)","v":""},{"$f":"IF('Prezenční listina'!F23=0,\"\",'Prezenční listina'!H23)","v":""}]
["",{"$f":"IF('Prezenční listina'!F24=0,\"\",'Prezenční listina'!F24)","v":""},{"$f":"IF('Prezenční listina'!F24=0,\"\",'Prezenční listina'!B24)","v":""},{"$f":"IF('Prezenční listina'!F24=0,\"\",'Prezenční listina'!C24)","v":""},{"$f":"IF('Prezenční listina'!F24=0,\"\",'Prezenční listina'!D24)","v":""},{"$f":"IF('Prezenční listina'!F24=0,\"\",'Prezenční listina'!E24)","v":""},{"$f":"IF('Prezenční listina'!F24=0,\"\",'Prezenční listina'!H24)","v":""}]
["",{"$f":"IF('Prezenční listina'!F25=0,\"\",'Prezenční listina'!F25)","v":""},{"$f":"IF('Prezenční listina'!F25=0,\"\",'Prezenční listina'!B25)","v":""},{"$f":"IF('Prezenční listina'!F25=0,\"\",'Prezenční listina'!C25)","v":""},{"$f":"IF('Prezenční listina'!F25=0,\"\",'Prezenční listina'!D25)","v":""},{"$f":"IF('Prezenční listina'!F25=0,\"\",'Prezenční listina'!E25)","v":""},{"$f":"IF('Prezenční listina'!F25=0,\"\",'Prezenční listina'!H25)","v":""}]
["",{"$f":"IF('Prezenční listina'!F31=0,\"\",'Prezenční listina'!F31)","v":""},{"$f":"IF('Prezenční listina'!F31=0,\"\",'Prezenční listina'!B31)","v":""},{"$f":"IF('Prezenční listina'!F31=0,\"\",'Prezenční listina'!C31)","v":""},{"$f":"IF('Prezenční listina'!F31=0,\"\",'Prezenční listina'!D31)","v":""},{"$f":"IF('Prezenční listina'!F31=0,\"\",'Prezenční listina'!E31)","v":""},{"$f":"IF('Prezenční listina'!F31=0,\"\",'Prezenční listina'!H31)","v":""}]
["",{"$f":"IF('Prezenční listina'!F35=0,\"\",'Prezenční listina'!F35)","v":""},{"$f":"IF('Prezenční listina'!F35=0,\"\",'Prezenční listina'!B35)","v":""},{"$f":"IF('Prezenční listina'!F35=0,\"\",'Prezenční listina'!C35)","v":""},{"$f":"IF('Prezenční listina'!F35=0,\"\",'Prezenční listina'!D35)","v":""},{"$f":"IF('Prezenční listina'!F35=0,\"\",'Prezenční listina'!E35)","v":""},{"$f":"IF('Prezenční listina'!F35=0,\"\",'Prezenční listina'!H35)","v":""}]
["",{"$f":"IF('Prezenční listina'!F55=0,\"\",'Prezenční listina'!F55)","v":""},{"$f":"IF('Prezenční listina'!F55=0,\"\",'Prezenční listina'!B55)","v":""},{"$f":"IF('Prezenční listina'!F55=0,\"\",'Prezenční listina'!C55)","v":""},{"$f":"IF('Prezenční listina'!F55=0,\"\",'Prezenční listina'!D55)","v":""},{"$f":"IF('Prezenční listina'!F55=0,\"\",'Prezenční listina'!E55)","v":""},{"$f":"IF('Prezenční listina'!F55=0,\"\",'Prezenční listina'!H55)","v":""}]
["",{"$f":"IF('Prezenční listina'!F56=0,\"\",'Prezenční listina'!F56)","v":""},{"$f":"IF('Prezenční listina'!F56=0,\"\",'Prezenční listina'!B56)","v":""},{"$f":"IF('Prezenční listina'!F56=0,\"\",'Prezenční listina'!C56)","v":""},{"$f":"IF('Prezenční listina'!F56=0,\"\",'Prezenční listina'!D56)","v":""},{"$f":"IF('Prezenční listina'!F56=0,\"\",'Prezenční listina'!E56)","v":""},{"$f":"IF('Prezenční listina'!F56=0,\"\",'Prezenční listina'!H56)","v":""}]
["",{"$f":"IF('Prezenční listina'!F57=0,\"\",'Prezenční listina'!F57)","v":""},{"$f":"IF('Prezenční listina'!F57=0,\"\",'Prezenční listina'!B57)","v":""},{"$f":"IF('Prezenční listina'!F57=0,\"\",'Prezenční listina'!C57)","v":""},{"$f":"IF('Prezenční listina'!F57=0,\"\",'Prezenční listina'!D57)","v":""},{"$f":"IF('Prezenční listina'!F57=0,\"\",'Prezenční listina'!E57)","v":""},{"$f":"IF('Prezenční listina'!F57=0,\"\",'Prezenční listina'!H57)","v":""}]
["",{"$f":"IF('Prezenční listina'!F58=0,\"\",'Prezenční listina'!F58)","v":""},{"$f":"IF('Prezenční listina'!F58=0,\"\",'Prezenční listina'!B58)","v":""},{"$f":"IF('Prezenční listina'!F58=0,\"\",'Prezenční listina'!C58)","v":""},{"$f":"IF('Prezenční listina'!F58=0,\"\",'Prezenční listina'!D58)","v":""},{"$f":"IF('Prezenční listina'!F58=0,\"\",'Prezenční listina'!E58)","v":""},{"$f":"IF('Prezenční listina'!F58=0,\"\",'Prezenční listina'!H58)","v":""}]
["",{"$f":"IF('Prezenční listina'!F59=0,\"\",'Prezenční listina'!F59)","v":""},{"$f":"IF('Prezenční listina'!F59=0,\"\",'Prezenční listina'!B59)","v":""},{"$f":"IF('Prezenční listina'!F59=0,\"\",'Prezenční listina'!C59)","v":""},{"$f":"IF('Prezenční listina'!F59=0,\"\",'Prezenční listina'!D59)","v":""},{"$f":"IF('Prezenční listina'!F59=0,\"\",'Prezenční listina'!E59)","v":""},{"$f":"IF('Prezenční listina'!F59=0,\"\",'Prezenční listina'!H59)","v":""}]
["",{"$f":"IF('Prezenční listina'!F60=0,\"\",'Prezenční listina'!F60)","v":""},{"$f":"IF('Prezenční listina'!F60=0,\"\",'Prezenční listina'!B60)","v":""},{"$f":"IF('Prezenční listina'!F60=0,\"\",'Prezenční listina'!C60)","v":""},{"$f":"IF('Prezenční listina'!F60=0,\"\",'Prezenční listina'!D60)","v":""},{"$f":"IF('Prezenční listina'!F60=0,\"\",'Prezenční listina'!E60)","v":""},{"$f":"IF('Prezenční listina'!F60=0,\"\",'Prezenční listina'!H60)","v":""}]
["",{"$f":"IF('Prezenční listina'!F61=0,\"\",'Prezenční listina'!F61)","v":""},{"$f":"IF('Prezenční listina'!F61=0,\"\",'Prezenční listina'!B61)","v":""},{"$f":"IF('Prezenční listina'!F61=0,\"\",'Prezenční listina'!C61)","v":""},{"$f":"IF('Prezenční listina'!F61=0,\"\",'Prezenční listina'!D61)","v":""},{"$f":"IF('Prezenční listina'!F61=0,\"\",'Prezenční listina'!E61)","v":""},{"$f":"IF('Prezenční listina'!F61=0,\"\",'Prezenční listina'!H61)","v":""}]
["",{"$f":"IF('Prezenční listina'!F62=0,\"\",'Prezenční listina'!F62)","v":""},{"$f":"IF('Prezenční listina'!F62=0,\"\",'Prezenční listina'!B62)","v":""},{"$f":"IF('Prezenční listina'!F62=0,\"\",'Prezenční listina'!C62)","v":""},{"$f":"IF('Prezenční listina'!F62=0,\"\",'Prezenční listina'!D62)","v":""},{"$f":"IF('Prezenční listina'!F62=0,\"\",'Prezenční listina'!E62)","v":""},{"$f":"IF('Prezenční listina'!F62=0,\"\",'Prezenční listina'!H62)","v":""}]
["",{"$f":"IF('Prezenční listina'!F63=0,\"\",'Prezenční listina'!F63)","v":""},{"$f":"IF('Prezenční listina'!F63=0,\"\",'Prezenční listina'!B63)","v":""},{"$f":"IF('Prezenční listina'!F63=0,\"\",'Prezenční listina'!C63)","v":""},{"$f":"IF('Prezenční listina'!F63=0,\"\",'Prezenční listina'!D63)","v":""},{"$f":"IF('Prezenční listina'!F63=0,\"\",'Prezenční listina'!E63)","v":""},{"$f":"IF('Prezenční listina'!F63=0,\"\",'Prezenční listina'!H63)","v":""}]
["",{"$f":"IF('Prezenční listina'!F64=0,\"\",'Prezenční listina'!F64)","v":""},{"$f":"IF('Prezenční listina'!F64=0,\"\",'Prezenční listina'!B64)","v":""},{"$f":"IF('Prezenční listina'!F64=0,\"\",'Prezenční listina'!C64)","v":""},{"$f":"IF('Prezenční listina'!F64=0,\"\",'Prezenční listina'!D64)","v":""},{"$f":"IF('Prezenční listina'!F64=0,\"\",'Prezenční listina'!E64)","v":""},{"$f":"IF('Prezenční listina'!F64=0,\"\",'Prezenční listina'!H64)","v":""}]
["",{"$f":"IF('Prezenční listina'!F65=0,\"\",'Prezenční listina'!F65)","v":""},{"$f":"IF('Prezenční listina'!F65=0,\"\",'Prezenční listina'!B65)","v":""},{"$f":"IF('Prezenční listina'!F65=0,\"\",'Prezenční listina'!C65)","v":""},{"$f":"IF('Prezenční listina'!F65=0,\"\",'Prezenční listina'!D65)","v":""},{"$f":"IF('Prezenční listina'!F65=0,\"\",'Prezenční listina'!E65)","v":""},{"$f":"IF('Prezenční listina'!F65=0,\"\",'Prezenční listina'!H65)","v":""}]
["",{"$f":"IF('Prezenční listina'!F66=0,\"\",'Prezenční listina'!F66)","v":""},{"$f":"IF('Prezenční listina'!F66=0,\"\",'Prezenční listina'!B66)","v":""},{"$f":"IF('Prezenční listina'!F66=0,\"\",'Prezenční listina'!C66)","v":""},{"$f":"IF('Prezenční listina'!F66=0,\"\",'Prezenční listina'!D66)","v":""},{"$f":"IF('Prezenční listina'!F66=0,\"\",'Prezenční listina'!E66)","v":""},{"$f":"IF('Prezenční listina'!F66=0,\"\",'Prezenční listina'!H66)","v":""}]
[{"$f":"IF(C74=\"\",\"\",A73+1)","v":""},{"$f":"IF('Prezenční listina'!F67=0,\"\",'Prezenční listina'!F67)","v":""},{"$f":"IF('Prezenční listina'!F67=0,\"\",'Prezenční listina'!B67)","v":""},{"$f":"IF('Prezenční listina'!F67=0,\"\",'Prezenční listina'!C67)","v":""},{"$f":"IF('Prezenční listina'!F67=0,\"\",'Prezenční listina'!D67)","v":""},{"$f":"IF('Prezenční listina'!F67=0,\"\",'Prezenční listina'!E67)","v":""},{"$f":"IF('Prezenční listina'!F67=0,\"\",'Prezenční listina'!H67)","v":""}]
["",{"$f":"IF('Prezenční listina'!F68=0,\"\",'Prezenční listina'!F68)","v":""},{"$f":"IF('Prezenční listina'!F68=0,\"\",'Prezenční listina'!B68)","v":""},{"$f":"IF('Prezenční listina'!F68=0,\"\",'Prezenční listina'!C68)","v":""},{"$f":"IF('Prezenční listina'!F68=0,\"\",'Prezenční listina'!D68)","v":""},{"$f":"IF('Prezenční listina'!F68=0,\"\",'Prezenční listina'!E68)","v":""},{"$f":"IF('Prezenční listina'!F68=0,\"\",'Prezenční listina'!H68)","v":""}]
["",{"$f":"IF('Prezenční listina'!F69=0,\"\",'Prezenční listina'!F69)","v":""},{"$f":"IF('Prezenční listina'!F69=0,\"\",'Prezenční listina'!B69)","v":""},{"$f":"IF('Prezenční listina'!F69=0,\"\",'Prezenční listina'!C69)","v":""},{"$f":"IF('Prezenční listina'!F69=0,\"\",'Prezenční listina'!D69)","v":""},{"$f":"IF('Prezenční listina'!F69=0,\"\",'Prezenční listina'!E69)","v":""},{"$f":"IF('Prezenční listina'!F69=0,\"\",'Prezenční listina'!H69)","v":""}]
["",{"$f":"IF('Prezenční listina'!F70=0,\"\",'Prezenční listina'!F70)","v":""},{"$f":"IF('Prezenční listina'!F70=0,\"\",'Prezenční listina'!B70)","v":""},{"$f":"IF('Prezenční listina'!F70=0,\"\",'Prezenční listina'!C70)","v":""},{"$f":"IF('Prezenční listina'!F70=0,\"\",'Prezenční listina'!D70)","v":""},{"$f":"IF('Prezenční listina'!F70=0,\"\",'Prezenční listina'!E70)","v":""},{"$f":"IF('Prezenční listina'!F70=0,\"\",'Prezenční listina'!H70)","v":""}]
["",{"$f":"IF('Prezenční listina'!F71=0,\"\",'Prezenční listina'!F71)","v":""},{"$f":"IF('Prezenční listina'!F71=0,\"\",'Prezenční listina'!B71)","v":""},{"$f":"IF('Prezenční listina'!F71=0,\"\",'Prezenční listina'!C71)","v":""},{"$f":"IF('Prezenční listina'!F71=0,\"\",'Prezenční listina'!D71)","v":""},{"$f":"IF('Prezenční listina'!F71=0,\"\",'Prezenční listina'!E71)","v":""},{"$f":"IF('Prezenční listina'!F71=0,\"\",'Prezenční listina'!H71)","v":""}]
["",{"$f":"IF('Prezenční listina'!F72=0,\"\",'Prezenční listina'!F72)","v":""},{"$f":"IF('Prezenční listina'!F72=0,\"\",'Prezenční listina'!B72)","v":""},{"$f":"IF('Prezenční listina'!F72=0,\"\",'Prezenční listina'!C72)","v":""},{"$f":"IF('Prezenční listina'!F72=0,\"\",'Prezenční listina'!D72)","v":""},{"$f":"IF('Prezenční listina'!F72=0,\"\",'Prezenční listina'!E72)","v":""},{"$f":"IF('Prezenční listina'!F72=0,\"\",'Prezenční listina'!H72)","v":""}]
["",{"$f":"IF('Prezenční listina'!F73=0,\"\",'Prezenční listina'!F73)","v":""},{"$f":"IF('Prezenční listina'!F73=0,\"\",'Prezenční listina'!B73)","v":""},{"$f":"IF('Prezenční listina'!F73=0,\"\",'Prezenční listina'!C73)","v":""},{"$f":"IF('Prezenční listina'!F73=0,\"\",'Prezenční listina'!D73)","v":""},{"$f":"IF('Prezenční listina'!F73=0,\"\",'Prezenční listina'!E73)","v":""},{"$f":"IF('Prezenční listina'!F73=0,\"\",'Prezenční listina'!H73)","v":""}]
["",{"$f":"IF('Prezenční listina'!F74=0,\"\",'Prezenční listina'!F74)","v":""},{"$f":"IF('Prezenční listina'!F74=0,\"\",'Prezenční listina'!B74)","v":""},{"$f":"IF('Prezenční listina'!F74=0,\"\",'Prezenční listina'!C74)","v":""},{"$f":"IF('Prezenční listina'!F74=0,\"\",'Prezenční listina'!D74)","v":""},{"$f":"IF('Prezenční listina'!F74=0,\"\",'Prezenční listina'!E74)","v":""},{"$f":"IF('Prezenční listina'!F74=0,\"\",'Prezenční listina'!H74)","v":""}]
["",{"$f":"IF('Prezenční listina'!F80=0,\"\",'Prezenční listina'!F80)","v":""},{"$f":"IF('Prezenční listina'!F80=0,\"\",'Prezenční listina'!B80)","v":""},{"$f":"IF('Prezenční listina'!F80=0,\"\",'Prezenční listina'!C80)","v":""},{"$f":"IF('Prezenční listina'!F80=0,\"\",'Prezenční listina'!D80)","v":""},{"$f":"IF('Prezenční listina'!F80=0,\"\",'Prezenční listina'!E80)","v":""},{"$f":"IF('Prezenční listina'!F80=0,\"\",'Prezenční listina'!H80)","v":""}]
["",{"$f":"IF('Prezenční listina'!F81=0,\"\",'Prezenční listina'!F81)","v":""},{"$f":"IF('Prezenční listina'!F81=0,\"\",'Prezenční listina'!B81)","v":""},{"$f":"IF('Prezenční listina'!F81=0,\"\",'Prezenční listina'!C81)","v":""},{"$f":"IF('Prezenční listina'!F81=0,\"\",'Prezenční listina'!D81)","v":""},{"$f":"IF('Prezenční listina'!F81=0,\"\",'Prezenční listina'!E81)","v":""},{"$f":"IF('Prezenční listina'!F81=0,\"\",'Prezenční listina'!H81)","v":""}]
["",{"$f":"IF('Prezenční listina'!F82=0,\"\",'Prezenční listina'!F82)","v":""},{"$f":"IF('Prezenční listina'!F82=0,\"\",'Prezenční listina'!B82)","v":""},{"$f":"IF('Prezenční listina'!F82=0,\"\",'Prezenční listina'!C82)","v":""},{"$f":"IF('Prezenční listina'!F82=0,\"\",'Prezenční listina'!D82)","v":""},{"$f":"IF('Prezenční listina'!F82=0,\"\",'Prezenční listina'!E82)","v":""},{"$f":"IF('Prezenční listina'!F82=0,\"\",'Prezenční listina'!H82)","v":""}]
["",{"$f":"IF('Prezenční listina'!F83=0,\"\",'Prezenční listina'!F83)","v":""},{"$f":"IF('Prezenční listina'!F83=0,\"\",'Prezenční listina'!B83)","v":""},{"$f":"IF('Prezenční listina'!F83=0,\"\",'Prezenční listina'!C83)","v":""},{"$f":"IF('Prezenční listina'!F83=0,\"\",'Prezenční listina'!D83)","v":""},{"$f":"IF('Prezenční listina'!F83=0,\"\",'Prezenční listina'!E83)","v":""},{"$f":"IF('Prezenční listina'!F83=0,\"\",'Prezenční listina'!H83)","v":""}]
["",{"$f":"IF('Prezenční listina'!F84=0,\"\",'Prezenční listina'!F84)","v":""},{"$f":"IF('Prezenční listina'!F84=0,\"\",'Prezenční listina'!B84)","v":""},{"$f":"IF('Prezenční listina'!F84=0,\"\",'Prezenční listina'!C84)","v":""},{"$f":"IF('Prezenční listina'!F84=0,\"\",'Prezenční listina'!D84)","v":""},{"$f":"IF('Prezenční listina'!F84=0,\"\",'Prezenční listina'!E84)","v":""},{"$f":"IF('Prezenční listina'!F84=0,\"\",'Prezenční listina'!H84)","v":""}]
["",{"$f":"IF('Prezenční listina'!F85=0,\"\",'Prezenční listina'!F85)","v":""},{"$f":"IF('Prezenční listina'!F85=0,\"\",'Prezenční listina'!B85)","v":""},{"$f":"IF('Prezenční listina'!F85=0,\"\",'Prezenční listina'!C85)","v":""},{"$f":"IF('Prezenční listina'!F85=0,\"\",'Prezenční listina'!D85)","v":""},{"$f":"IF('Prezenční listina'!F85=0,\"\",'Prezenční listina'!E85)","v":""},{"$f":"IF('Prezenční listina'!F85=0,\"\",'Prezenční listina'!H85)","v":""}]
["",{"$f":"IF('Prezenční listina'!F86=0,\"\",'Prezenční listina'!F86)","v":""},{"$f":"IF('Prezenční listina'!F86=0,\"\",'Prezenční listina'!B86)","v":""},{"$f":"IF('Prezenční listina'!F86=0,\"\",'Prezenční listina'!C86)","v":""},{"$f":"IF('Prezenční listina'!F86=0,\"\",'Prezenční listina'!D86)","v":""},{"$f":"IF('Prezenční listina'!F86=0,\"\",'Prezenční listina'!E86)","v":""},{"$f":"IF('Prezenční listina'!F86=0,\"\",'Prezenční listina'!H86)","v":""}]
["",{"$f":"IF('Prezenční listina'!F87=0,\"\",'Prezenční listina'!F87)","v":""},{"$f":"IF('Prezenční listina'!F87=0,\"\",'Prezenční listina'!B87)","v":""},{"$f":"IF('Prezenční listina'!F87=0,\"\",'Prezenční listina'!C87)","v":""},{"$f":"IF('Prezenční listina'!F87=0,\"\",'Prezenční listina'!D87)","v":""},{"$f":"IF('Prezenční listina'!F87=0,\"\",'Prezenční listina'!E87)","v":""},{"$f":"IF('Prezenční listina'!F87=0,\"\",'Prezenční listina'!H87)","v":""}]
["",{"$f":"IF('Prezenční listina'!F88=0,\"\",'Prezenční listina'!F88)","v":""},{"$f":"IF('Prezenční listina'!F88=0,\"\",'Prezenční listina'!B88)","v":""},{"$f":"IF('Prezenční listina'!F88=0,\"\",'Prezenční listina'!C88)","v":""},{"$f":"IF('Prezenční listina'!F88=0,\"\",'Prezenční listina'!D88)","v":""},{"$f":"IF('Prezenční listina'!F88=0,\"\",'Prezenční listina'!E88)","v":""},{"$f":"IF('Prezenční listina'!F88=0,\"\",'Prezenční listina'!H88)","v":""}]
[{"$f":"IF(C91=\"\",\"\",A90+1)","v":""},{"$f":"IF('Prezenční listina'!F89=0,\"\",'Prezenční listina'!F89)","v":""},{"$f":"IF('Prezenční listina'!F89=0,\"\",'Prezenční listina'!B89)","v":""},{"$f":"IF('Prezenční listina'!F89=0,\"\",'Prezenční listina'!C89)","v":""},{"$f":"IF('Prezenční listina'!F89=0,\"\",'Prezenční listina'!D89)","v":""},{"$f":"IF('Prezenční listina'!F89=0,\"\",'Prezenční listina'!E89)","v":""},{"$f":"IF('Prezenční listina'!F89=0,\"\",'Prezenční listina'!H89)","v":""}]
["",{"$f":"IF('Prezenční listina'!F90=0,\"\",'Prezenční listina'!F90)","v":""},{"$f":"IF('Prezenční listina'!F90=0,\"\",'Prezenční listina'!B90)","v":""},{"$f":"IF('Prezenční listina'!F90=0,\"\",'Prezenční listina'!C90)","v":""},{"$f":"IF('Prezenční listina'!F90=0,\"\",'Prezenční listina'!D90)","v":""},{"$f":"IF('Prezenční listina'!F90=0,\"\",'Prezenční listina'!E90)","v":""},{"$f":"IF('Prezenční listina'!F90=0,\"\",'Prezenční listina'!H90)","v":""}]
["",{"$f":"IF('Prezenční listina'!F91=0,\"\",'Prezenční listina'!F91)","v":""},{"$f":"IF('Prezenční listina'!F91=0,\"\",'Prezenční listina'!B91)","v":""},{"$f":"IF('Prezenční listina'!F91=0,\"\",'Prezenční listina'!C91)","v":""},{"$f":"IF('Prezenční listina'!F91=0,\"\",'Prezenční listina'!D91)","v":""},{"$f":"IF('Prezenční listina'!F91=0,\"\",'Prezenční listina'!E91)","v":""},{"$f":"IF('Prezenční listina'!F91=0,\"\",'Prezenční listina'!H91)","v":""}]
["",{"$f":"IF('Prezenční listina'!F92=0,\"\",'Prezenční listina'!F92)","v":""},{"$f":"IF('Prezenční listina'!F92=0,\"\",'Prezenční listina'!B92)","v":""},{"$f":"IF('Prezenční listina'!F92=0,\"\",'Prezenční listina'!C92)","v":""},{"$f":"IF('Prezenční listina'!F92=0,\"\",'Prezenční listina'!D92)","v":""},{"$f":"IF('Prezenční listina'!F92=0,\"\",'Prezenční listina'!E92)","v":""},{"$f":"IF('Prezenční listina'!F92=0,\"\",'Prezenční listina'!H92)","v":""}]
["",{"$f":"IF('Prezenční listina'!F93=0,\"\",'Prezenční listina'!F93)","v":""},{"$f":"IF('Prezenční listina'!F93=0,\"\",'Prezenční listina'!B93)","v":""},{"$f":"IF('Prezenční listina'!F93=0,\"\",'Prezenční listina'!C93)","v":""},{"$f":"IF('Prezenční listina'!F93=0,\"\",'Prezenční listina'!D93)","v":""},{"$f":"IF('Prezenční listina'!F93=0,\"\",'Prezenční listina'!E93)","v":""},{"$f":"IF('Prezenční listina'!F93=0,\"\",'Prezenční listina'!H93)","v":""}]
["",{"$f":"IF('Prezenční listina'!F94=0,\"\",'Prezenční listina'!F94)","v":""},{"$f":"IF('Prezenční listina'!F94=0,\"\",'Prezenční listina'!B94)","v":""},{"$f":"IF('Prezenční listina'!F94=0,\"\",'Prezenční listina'!C94)","v":""},{"$f":"IF('Prezenční listina'!F94=0,\"\",'Prezenční listina'!D94)","v":""},{"$f":"IF('Prezenční listina'!F94=0,\"\",'Prezenční listina'!E94)","v":""},{"$f":"IF('Prezenční listina'!F94=0,\"\",'Prezenční listina'!H94)","v":""}]
["",{"$f":"IF('Prezenční listina'!F95=0,\"\",'Prezenční listina'!F95)","v":""},{"$f":"IF('Prezenční listina'!F95=0,\"\",'Prezenční listina'!B95)","v":""},{"$f":"IF('Prezenční listina'!F95=0,\"\",'Prezenční listina'!C95)","v":""},{"$f":"IF('Prezenční listina'!F95=0,\"\",'Prezenční listina'!D95)","v":""},{"$f":"IF('Prezenční listina'!F95=0,\"\",'Prezenční listina'!E95)","v":""},{"$f":"IF('Prezenční listina'!F95=0,\"\",'Prezenční listina'!H95)","v":""}]
["",{"$f":"IF('Prezenční listina'!F96=0,\"\",'Prezenční listina'!F96)","v":""},{"$f":"IF('Prezenční listina'!F96=0,\"\",'Prezenční listina'!B96)","v":""},{"$f":"IF('Prezenční listina'!F96=0,\"\",'Prezenční listina'!C96)","v":""},{"$f":"IF('Prezenční listina'!F96=0,\"\",'Prezenční listina'!D96)","v":""},{"$f":"IF('Prezenční listina'!F96=0,\"\",'Prezenční listina'!E96)","v":""},{"$f":"IF('Prezenční listina'!F96=0,\"\",'Prezenční listina'!H96)","v":""}]
["",{"$f":"IF('Prezenční listina'!F97=0,\"\",'Prezenční listina'!F97)","v":""},{"$f":"IF('Prezenční listina'!F97=0,\"\",'Prezenční listina'!B97)","v":""},{"$f":"IF('Prezenční listina'!F97=0,\"\",'Prezenční listina'!C97)","v":""},{"$f":"IF('Prezenční listina'!F97=0,\"\",'Prezenční listina'!D97)","v":""},{"$f":"IF('Prezenční listina'!F97=0,\"\",'Prezenční listina'!E97)","v":""},{"$f":"IF('Prezenční listina'!F97=0,\"\",'Prezenční listina'!H97)","v":""}]
["",{"$f":"IF('Prezenční listina'!F98=0,\"\",'Prezenční listina'!F98)","v":""},{"$f":"IF('Prezenční listina'!F98=0,\"\",'Prezenční listina'!B98)","v":""},{"$f":"IF('Prezenční listina'!F98=0,\"\",'Prezenční listina'!C98)","v":""},{"$f":"IF('Prezenční listina'!F98=0,\"\",'Prezenční listina'!D98)","v":""},{"$f":"IF('Prezenční listina'!F98=0,\"\",'Prezenční listina'!E98)","v":""},{"$f":"IF('Prezenční listina'!F98=0,\"\",'Prezenční listina'!H98)","v":""}]
["",{"$f":"IF('Prezenční listina'!F99=0,\"\",'Prezenční listina'!F99)","v":""},{"$f":"IF('Prezenční listina'!F99=0,\"\",'Prezenční listina'!B99)","v":""},{"$f":"IF('Prezenční listina'!F99=0,\"\",'Prezenční listina'!C99)","v":""},{"$f":"IF('Prezenční listina'!F99=0,\"\",'Prezenční listina'!D99)","v":""},{"$f":"IF('Prezenční listina'!F99=0,\"\",'Prezenční listina'!E99)","v":""},{"$f":"IF('Prezenční listina'!F99=0,\"\",'Prezenční listina'!H99)","v":""}]
["",{"$f":"IF('Prezenční listina'!F100=0,\"\",'Prezenční listina'!F100)","v":""},{"$f":"IF('Prezenční listina'!F100=0,\"\",'Prezenční listina'!B100)","v":""},{"$f":"IF('Prezenční listina'!F100=0,\"\",'Prezenční listina'!C100)","v":""},{"$f":"IF('Prezenční listina'!F100=0,\"\",'Prezenční listina'!D100)","v":""},{"$f":"IF('Prezenční listina'!F100=0,\"\",'Prezenční listina'!E100)","v":""},{"$f":"IF('Prezenční listina'!F100=0,\"\",'Prezenční listina'!H100)","v":""}]
["",{"$f":"IF('Prezenční listina'!F101=0,\"\",'Prezenční listina'!F101)","v":""},{"$f":"IF('Prezenční listina'!F101=0,\"\",'Prezenční listina'!B101)","v":""},{"$f":"IF('Prezenční listina'!F101=0,\"\",'Prezenční listina'!C101)","v":""},{"$f":"IF('Prezenční listina'!F101=0,\"\",'Prezenční listina'!D101)","v":""},{"$f":"IF('Prezenční listina'!F101=0,\"\",'Prezenční listina'!E101)","v":""},{"$f":"IF('Prezenční listina'!F101=0,\"\",'Prezenční listina'!H101)","v":""}]
["",{"$f":"IF('Prezenční listina'!F102=0,\"\",'Prezenční listina'!F102)","v":""},{"$f":"IF('Prezenční listina'!F102=0,\"\",'Prezenční listina'!B102)","v":""},{"$f":"IF('Prezenční listina'!F102=0,\"\",'Prezenční listina'!C102)","v":""},{"$f":"IF('Prezenční listina'!F102=0,\"\",'Prezenční listina'!D102)","v":""},{"$f":"IF('Prezenční listina'!F102=0,\"\",'Prezenční listina'!E102)","v":""},{"$f":"IF('Prezenční listina'!F102=0,\"\",'Prezenční listina'!H102)","v":""}]
["",{"$f":"IF('Prezenční listina'!F103=0,\"\",'Prezenční listina'!F103)","v":""},{"$f":"IF('Prezenční listina'!F103=0,\"\",'Prezenční listina'!B103)","v":""},{"$f":"IF('Prezenční listina'!F103=0,\"\",'Prezenční listina'!C103)","v":""},{"$f":"IF('Prezenční listina'!F103=0,\"\",'Prezenční listina'!D103)","v":""},{"$f":"IF('Prezenční listina'!F103=0,\"\",'Prezenční listina'!E103)","v":""},{"$f":"IF('Prezenční listina'!F103=0,\"\",'Prezenční listina'!H103)","v":""}]
["",{"$f":"IF('Prezenční listina'!F104=0,\"\",'Prezenční listina'!F104)","v":""},{"$f":"IF('Prezenční listina'!F104=0,\"\",'Prezenční listina'!B104)","v":""},{"$f":"IF('Prezenční listina'!F104=0,\"\",'Prezenční listina'!C104)","v":""},{"$f":"IF('Prezenční listina'!F104=0,\"\",'Prezenční listina'!D104)","v":""},{"$f":"IF('Prezenční listina'!F104=0,\"\",'Prezenční listina'!E104)","v":""},{"$f":"IF('Prezenční listina'!F104=0,\"\",'Prezenční listina'!H104)","v":""}]
["",{"$f":"IF('Prezenční listina'!F105=0,\"\",'Prezenční listina'!F105)","v":""},{"$f":"IF('Prezenční listina'!F105=0,\"\",'Prezenční listina'!B105)","v":""},{"$f":"IF('Prezenční listina'!F105=0,\"\",'Prezenční listina'!C105)","v":""},{"$f":"IF('Prezenční listina'!F105=0,\"\",'Prezenční listina'!D105)","v":""},{"$f":"IF('Prezenční listina'!F105=0,\"\",'Prezenční listina'!E105)","v":""},{"$f":"IF('Prezenční listina'!F105=0,\"\",'Prezenční listina'!H105)","v":""}]
["",{"$f":"IF('Prezenční listina'!F106=0,\"\",'Prezenční listina'!F106)","v":""},{"$f":"IF('Prezenční listina'!F106=0,\"\",'Prezenční listina'!B106)","v":""},{"$f":"IF('Prezenční listina'!F106=0,\"\",'Prezenční listina'!C106)","v":""},{"$f":"IF('Prezenční listina'!F106=0,\"\",'Prezenční listina'!D106)","v":""},{"$f":"IF('Prezenční listina'!F106=0,\"\",'Prezenční listina'!E106)","v":""},{"$f":"IF('Prezenční listina'!F106=0,\"\",'Prezenční listina'!H106)","v":""}]
["",{"$f":"IF('Prezenční listina'!F107=0,\"\",'Prezenční listina'!F107)","v":""},{"$f":"IF('Prezenční listina'!F107=0,\"\",'Prezenční listina'!B107)","v":""},{"$f":"IF('Prezenční listina'!F107=0,\"\",'Prezenční listina'!C107)","v":""},{"$f":"IF('Prezenční listina'!F107=0,\"\",'Prezenční listina'!D107)","v":""},{"$f":"IF('Prezenční listina'!F107=0,\"\",'Prezenční listina'!E107)","v":""},{"$f":"IF('Prezenční listina'!F107=0,\"\",'Prezenční listina'!H107)","v":""}]
["",{"$f":"IF('Prezenční listina'!F108=0,\"\",'Prezenční listina'!F108)","v":""},{"$f":"IF('Prezenční listina'!F108=0,\"\",'Prezenční listina'!B108)","v":""},{"$f":"IF('Prezenční listina'!F108=0,\"\",'Prezenční listina'!C108)","v":""},{"$f":"IF('Prezenční listina'!F108=0,\"\",'Prezenční listina'!D108)","v":""},{"$f":"IF('Prezenční listina'!F108=0,\"\",'Prezenční listina'!E108)","v":""},{"$f":"IF('Prezenční listina'!F108=0,\"\",'Prezenční listina'!H108)","v":""}]
["",{"$f":"IF('Prezenční listina'!F109=0,\"\",'Prezenční listina'!F109)","v":""},{"$f":"IF('Prezenční listina'!F109=0,\"\",'Prezenční listina'!B109)","v":""},{"$f":"IF('Prezenční listina'!F109=0,\"\",'Prezenční listina'!C109)","v":""},{"$f":"IF('Prezenční listina'!F109=0,\"\",'Prezenční listina'!D109)","v":""},{"$f":"IF('Prezenční listina'!F109=0,\"\",'Prezenční listina'!E109)","v":""},{"$f":"IF('Prezenční listina'!F109=0,\"\",'Prezenční listina'!H109)","v":""}]
["",{"$f":"IF('Prezenční listina'!F110=0,\"\",'Prezenční listina'!F110)","v":""},{"$f":"IF('Prezenční listina'!F110=0,\"\",'Prezenční listina'!B110)","v":""},{"$f":"IF('Prezenční listina'!F110=0,\"\",'Prezenční listina'!C110)","v":""},{"$f":"IF('Prezenční listina'!F110=0,\"\",'Prezenční listina'!D110)","v":""},{"$f":"IF('Prezenční listina'!F110=0,\"\",'Prezenční listina'!E110)","v":""},{"$f":"IF('Prezenční listina'!F110=0,\"\",'Prezenční listina'!H110)","v":""}]
["",{"$f":"IF('Prezenční listina'!F111=0,\"\",'Prezenční listina'!F111)","v":""},{"$f":"IF('Prezenční listina'!F111=0,\"\",'Prezenční listina'!B111)","v":""},{"$f":"IF('Prezenční listina'!F111=0,\"\",'Prezenční listina'!C111)","v":""},{"$f":"IF('Prezenční listina'!F111=0,\"\",'Prezenční listina'!D111)","v":""},{"$f":"IF('Prezenční listina'!F111=0,\"\",'Prezenční listina'!E111)","v":""},{"$f":"IF('Prezenční listina'!F111=0,\"\",'Prezenční listina'!H111)","v":""}]
["",{"$f":"IF('Prezenční listina'!F112=0,\"\",'Prezenční listina'!F112)","v":""},{"$f":"IF('Prezenční listina'!F112=0,\"\",'Prezenční listina'!B112)","v":""},{"$f":"IF('Prezenční listina'!F112=0,\"\",'Prezenční listina'!C112)","v":""},{"$f":"IF('Prezenční listina'!F112=0,\"\",'Prezenční listina'!D112)","v":""},{"$f":"IF('Prezenční listina'!F112=0,\"\",'Prezenční listina'!E112)","v":""},{"$f":"IF('Prezenční listina'!F112=0,\"\",'Prezenční listina'!H112)","v":""}]
["",{"$f":"IF('Prezenční listina'!F113=0,\"\",'Prezenční listina'!F113)","v":""},{"$f":"IF('Prezenční listina'!F113=0,\"\",'Prezenční listina'!B113)","v":""},{"$f":"IF('Prezenční listina'!F113=0,\"\",'Prezenční listina'!C113)","v":""},{"$f":"IF('Prezenční listina'!F113=0,\"\",'Prezenční listina'!D113)","v":""},{"$f":"IF('Prezenční listina'!F113=0,\"\",'Prezenční listina'!E113)","v":""},{"$f":"IF('Prezenční listina'!F113=0,\"\",'Prezenční listina'!H113)","v":""}]
["",{"$f":"IF('Prezenční listina'!F114=0,\"\",'Prezenční listina'!F114)","v":""},{"$f":"IF('Prezenční listina'!F114=0,\"\",'Prezenční listina'!B114)","v":""},{"$f":"IF('Prezenční listina'!F114=0,\"\",'Prezenční listina'!C114)","v":""},{"$f":"IF('Prezenční listina'!F114=0,\"\",'Prezenční listina'!D114)","v":""},{"$f":"IF('Prezenční listina'!F114=0,\"\",'Prezenční listina'!E114)","v":""},{"$f":"IF('Prezenční listina'!F114=0,\"\",'Prezenční listina'!H114)","v":""}]
["",{"$f":"IF('Prezenční listina'!F115=0,\"\",'Prezenční listina'!F115)","v":""},{"$f":"IF('Prezenční listina'!F115=0,\"\",'Prezenční listina'!B115)","v":""},{"$f":"IF('Prezenční listina'!F115=0,\"\",'Prezenční listina'!C115)","v":""},{"$f":"IF('Prezenční listina'!F115=0,\"\",'Prezenční listina'!D115)","v":""},{"$f":"IF('Prezenční listina'!F115=0,\"\",'Prezenční listina'!E115)","v":""},{"$f":"IF('Prezenční listina'!F115=0,\"\",'Prezenční listina'!H115)","v":""}]
["",{"$f":"IF('Prezenční listina'!F116=0,\"\",'Prezenční listina'!F116)","v":""},{"$f":"IF('Prezenční listina'!F116=0,\"\",'Prezenční listina'!B116)","v":""},{"$f":"IF('Prezenční listina'!F116=0,\"\",'Prezenční listina'!C116)","v":""},{"$f":"IF('Prezenční listina'!F116=0,\"\",'Prezenční listina'!D116)","v":""},{"$f":"IF('Prezenční listina'!F116=0,\"\",'Prezenční listina'!E116)","v":""},{"$f":"IF('Prezenční listina'!F116=0,\"\",'Prezenční listina'!H116)","v":""}]
["",{"$f":"IF('Prezenční listina'!F117=0,\"\",'Prezenční listina'!F117)","v":""},{"$f":"IF('Prezenční listina'!F117=0,\"\",'Prezenční listina'!B117)","v":""},{"$f":"IF('Prezenční listina'!F117=0,\"\",'Prezenční listina'!C117)","v":""},{"$f":"IF('Prezenční listina'!F117=0,\"\",'Prezenční listina'!D117)","v":""},{"$f":"IF('Prezenční listina'!F117=0,\"\",'Prezenční listina'!E117)","v":""},{"$f":"IF('Prezenční listina'!F117=0,\"\",'Prezenční listina'!H117)","v":""}]
["",{"$f":"IF('Prezenční listina'!F118=0,\"\",'Prezenční listina'!F118)","v":""},{"$f":"IF('Prezenční listina'!F118=0,\"\",'Prezenční listina'!B118)","v":""},{"$f":"IF('Prezenční listina'!F118=0,\"\",'Prezenční listina'!C118)","v":""},{"$f":"IF('Prezenční listina'!F118=0,\"\",'Prezenční listina'!D118)","v":""},{"$f":"IF('Prezenční listina'!F118=0,\"\",'Prezenční listina'!E118)","v":""},{"$f":"IF('Prezenční listina'!F118=0,\"\",'Prezenční listina'!H118)","v":""}]
["",{"$f":"IF('Prezenční listina'!F119=0,\"\",'Prezenční listina'!F119)","v":""},{"$f":"IF('Prezenční listina'!F119=0,\"\",'Prezenční listina'!B119)","v":""},{"$f":"IF('Prezenční listina'!F119=0,\"\",'Prezenční listina'!C119)","v":""},{"$f":"IF('Prezenční listina'!F119=0,\"\",'Prezenční listina'!D119)","v":""},{"$f":"IF('Prezenční listina'!F119=0,\"\",'Prezenční listina'!E119)","v":""},{"$f":"IF('Prezenční listina'!F119=0,\"\",'Prezenční listina'!H119)","v":""}]
["",{"$f":"IF('Prezenční listina'!F120=0,\"\",'Prezenční listina'!F120)","v":""},{"$f":"IF('Prezenční listina'!F120=0,\"\",'Prezenční listina'!B120)","v":""},{"$f":"IF('Prezenční listina'!F120=0,\"\",'Prezenční listina'!C120)","v":""},{"$f":"IF('Prezenční listina'!F120=0,\"\",'Prezenční listina'!D120)","v":""},{"$f":"IF('Prezenční listina'!F120=0,\"\",'Prezenční listina'!E120)","v":""},{"$f":"IF('Prezenční listina'!F120=0,\"\",'Prezenční listina'!H120)","v":""}]
["",{"$f":"IF('Prezenční listina'!F121=0,\"\",'Prezenční listina'!F121)","v":""},{"$f":"IF('Prezenční listina'!F121=0,\"\",'Prezenční listina'!B121)","v":""},{"$f":"IF('Prezenční listina'!F121=0,\"\",'Prezenční listina'!C121)","v":""},{"$f":"IF('Prezenční listina'!F121=0,\"\",'Prezenční listina'!D121)","v":""},{"$f":"IF('Prezenční listina'!F121=0,\"\",'Prezenční listina'!E121)","v":""},{"$f":"IF('Prezenční listina'!F121=0,\"\",'Prezenční listina'!H121)","v":""}]
["",{"$f":"IF('Prezenční listina'!F122=0,\"\",'Prezenční listina'!F122)","v":""},{"$f":"IF('Prezenční listina'!F122=0,\"\",'Prezenční listina'!B122)","v":""},{"$f":"IF('Prezenční listina'!F122=0,\"\",'Prezenční listina'!C122)","v":""},{"$f":"IF('Prezenční listina'!F122=0,\"\",'Prezenční listina'!D122)","v":""},{"$f":"IF('Prezenční listina'!F122=0,\"\",'Prezenční listina'!E122)","v":""},{"$f":"IF('Prezenční listina'!F122=0,\"\",'Prezenční listina'!H122)","v":""}]
["",{"$f":"IF('Prezenční listina'!F123=0,\"\",'Prezenční listina'!F123)","v":""},{"$f":"IF('Prezenční listina'!F123=0,\"\",'Prezenční listina'!B123)","v":""},{"$f":"IF('Prezenční listina'!F123=0,\"\",'Prezenční listina'!C123)","v":""},{"$f":"IF('Prezenční listina'!F123=0,\"\",'Prezenční listina'!D123)","v":""},{"$f":"IF('Prezenční listina'!F123=0,\"\",'Prezenční listina'!E123)","v":""},{"$f":"IF('Prezenční listina'!F123=0,\"\",'Prezenční listina'!H123)","v":""}]
["",{"$f":"IF('Prezenční listina'!F124=0,\"\",'Prezenční listina'!F124)","v":""},{"$f":"IF('Prezenční listina'!F124=0,\"\",'Prezenční listina'!B124)","v":""},{"$f":"IF('Prezenční listina'!F124=0,\"\",'Prezenční listina'!C124)","v":""},{"$f":"IF('Prezenční listina'!F124=0,\"\",'Prezenční listina'!D124)","v":""},{"$f":"IF('Prezenční listina'!F124=0,\"\",'Prezenční listina'!E124)","v":""},{"$f":"IF('Prezenční listina'!F124=0,\"\",'Prezenční listina'!H124)","v":""}]
["",{"$f":"IF('Prezenční listina'!F125=0,\"\",'Prezenční listina'!F125)","v":""},{"$f":"IF('Prezenční listina'!F125=0,\"\",'Prezenční listina'!B125)","v":""},{"$f":"IF('Prezenční listina'!F125=0,\"\",'Prezenční listina'!C125)","v":""},{"$f":"IF('Prezenční listina'!F125=0,\"\",'Prezenční listina'!D125)","v":""},{"$f":"IF('Prezenční listina'!F125=0,\"\",'Prezenční listina'!E125)","v":""},{"$f":"IF('Prezenční listina'!F125=0,\"\",'Prezenční listina'!H125)","v":""}]
["",{"$f":"IF('Prezenční listina'!F126=0,\"\",'Prezenční listina'!F126)","v":""},{"$f":"IF('Prezenční listina'!F126=0,\"\",'Prezenční listina'!B126)","v":""},{"$f":"IF('Prezenční listina'!F126=0,\"\",'Prezenční listina'!C126)","v":""},{"$f":"IF('Prezenční listina'!F126=0,\"\",'Prezenční listina'!D126)","v":""},{"$f":"IF('Prezenční listina'!F126=0,\"\",'Prezenční listina'!E126)","v":""},{"$f":"IF('Prezenční listina'!F126=0,\"\",'Prezenční listina'!H126)","v":""}]
["",{"$f":"IF('Prezenční listina'!F127=0,\"\",'Prezenční listina'!F127)","v":""},{"$f":"IF('Prezenční listina'!F127=0,\"\",'Prezenční listina'!B127)","v":""},{"$f":"IF('Prezenční listina'!F127=0,\"\",'Prezenční listina'!C127)","v":""},{"$f":"IF('Prezenční listina'!F127=0,\"\",'Prezenční listina'!D127)","v":""},{"$f":"IF('Prezenční listina'!F127=0,\"\",'Prezenční listina'!E127)","v":""},{"$f":"IF('Prezenční listina'!F127=0,\"\",'Prezenční listina'!H127)","v":""}]
["",{"$f":"IF('Prezenční listina'!F128=0,\"\",'Prezenční listina'!F128)","v":""},{"$f":"IF('Prezenční listina'!F128=0,\"\",'Prezenční listina'!B128)","v":""},{"$f":"IF('Prezenční listina'!F128=0,\"\",'Prezenční listina'!C128)","v":""},{"$f":"IF('Prezenční listina'!F128=0,\"\",'Prezenční listina'!D128)","v":""},{"$f":"IF('Prezenční listina'!F128=0,\"\",'Prezenční listina'!E128)","v":""},{"$f":"IF('Prezenční listina'!F128=0,\"\",'Prezenční listina'!H128)","v":""}]
["",{"$f":"IF('Prezenční listina'!F129=0,\"\",'Prezenční listina'!F129)","v":""},{"$f":"IF('Prezenční listina'!F129=0,\"\",'Prezenční listina'!B129)","v":""},{"$f":"IF('Prezenční listina'!F129=0,\"\",'Prezenční listina'!C129)","v":""},{"$f":"IF('Prezenční listina'!F129=0,\"\",'Prezenční listina'!D129)","v":""},{"$f":"IF('Prezenční listina'!F129=0,\"\",'Prezenční listina'!E129)","v":""},{"$f":"IF('Prezenční listina'!F129=0,\"\",'Prezenční listina'!H129)","v":""}]
["",{"$f":"IF('Prezenční listina'!F130=0,\"\",'Prezenční listina'!F130)","v":""},{"$f":"IF('Prezenční listina'!F130=0,\"\",'Prezenční listina'!B130)","v":""},{"$f":"IF('Prezenční listina'!F130=0,\"\",'Prezenční listina'!C130)","v":""},{"$f":"IF('Prezenční listina'!F130=0,\"\",'Prezenční listina'!D130)","v":""},{"$f":"IF('Prezenční listina'!F130=0,\"\",'Prezenční listina'!E130)","v":""},{"$f":"IF('Prezenční listina'!F130=0,\"\",'Prezenční listina'!H130)","v":""}]
["",{"$f":"IF('Prezenční listina'!F131=0,\"\",'Prezenční listina'!F131)","v":""},{"$f":"IF('Prezenční listina'!F131=0,\"\",'Prezenční listina'!B131)","v":""},{"$f":"IF('Prezenční listina'!F131=0,\"\",'Prezenční listina'!C131)","v":""},{"$f":"IF('Prezenční listina'!F131=0,\"\",'Prezenční listina'!D131)","v":""},{"$f":"IF('Prezenční listina'!F131=0,\"\",'Prezenční listina'!E131)","v":""},{"$f":"IF('Prezenční listina'!F131=0,\"\",'Prezenční listina'!H131)","v":""}]
["",{"$f":"IF('Prezenční listina'!F132=0,\"\",'Prezenční listina'!F132)","v":""},{"$f":"IF('Prezenční listina'!F132=0,\"\",'Prezenční listina'!B132)","v":""},{"$f":"IF('Prezenční listina'!F132=0,\"\",'Prezenční listina'!C132)","v":""},{"$f":"IF('Prezenční listina'!F132=0,\"\",'Prezenční listina'!D132)","v":""},{"$f":"IF('Prezenční listina'!F132=0,\"\",'Prezenční listina'!E132)","v":""},{"$f":"IF('Prezenční listina'!F132=0,\"\",'Prezenční listina'!H132)","v":""}]
["",{"$f":"IF('Prezenční listina'!F133=0,\"\",'Prezenční listina'!F133)","v":""},{"$f":"IF('Prezenční listina'!F133=0,\"\",'Prezenční listina'!B133)","v":""},{"$f":"IF('Prezenční listina'!F133=0,\"\",'Prezenční listina'!C133)","v":""},{"$f":"IF('Prezenční listina'!F133=0,\"\",'Prezenční listina'!D133)","v":""},{"$f":"IF('Prezenční listina'!F133=0,\"\",'Prezenční listina'!E133)","v":""},{"$f":"IF('Prezenční listina'!F133=0,\"\",'Prezenční listina'!H133)","v":""}]
["",{"$f":"IF('Prezenční listina'!F134=0,\"\",'Prezenční listina'!F134)","v":""},{"$f":"IF('Prezenční listina'!F134=0,\"\",'Prezenční listina'!B134)","v":""},{"$f":"IF('Prezenční listina'!F134=0,\"\",'Prezenční listina'!C134)","v":""},{"$f":"IF('Prezenční listina'!F134=0,\"\",'Prezenční listina'!D134)","v":""},{"$f":"IF('Prezenční listina'!F134=0,\"\",'Prezenční listina'!E134)","v":""},{"$f":"IF('Prezenční listina'!F134=0,\"\",'Prezenční listina'!H134)","v":""}]
["",{"$f":"IF('Prezenční listina'!F135=0,\"\",'Prezenční listina'!F135)","v":""},{"$f":"IF('Prezenční listina'!F135=0,\"\",'Prezenční listina'!B135)","v":""},{"$f":"IF('Prezenční listina'!F135=0,\"\",'Prezenční listina'!C135)","v":""},{"$f":"IF('Prezenční listina'!F135=0,\"\",'Prezenční listina'!D135)","v":""},{"$f":"IF('Prezenční listina'!F135=0,\"\",'Prezenční listina'!E135)","v":""},{"$f":"IF('Prezenční listina'!F135=0,\"\",'Prezenční listina'!H135)","v":""}]
["",{"$f":"IF('Prezenční listina'!F136=0,\"\",'Prezenční listina'!F136)","v":""},{"$f":"IF('Prezenční listina'!F136=0,\"\",'Prezenční listina'!B136)","v":""},{"$f":"IF('Prezenční listina'!F136=0,\"\",'Prezenční listina'!C136)","v":""},{"$f":"IF('Prezenční listina'!F136=0,\"\",'Prezenční listina'!D136)","v":""},{"$f":"IF('Prezenční listina'!F136=0,\"\",'Prezenční listina'!E136)","v":""},{"$f":"IF('Prezenční listina'!F136=0,\"\",'Prezenční listina'!H136)","v":""}]
["",{"$f":"IF('Prezenční listina'!F137=0,\"\",'Prezenční listina'!F137)","v":""},{"$f":"IF('Prezenční listina'!F137=0,\"\",'Prezenční listina'!B137)","v":""},{"$f":"IF('Prezenční listina'!F137=0,\"\",'Prezenční listina'!C137)","v":""},{"$f":"IF('Prezenční listina'!F137=0,\"\",'Prezenční listina'!D137)","v":""},{"$f":"IF('Prezenční listina'!F137=0,\"\",'Prezenční listina'!E137)","v":""},{"$f":"IF('Prezenční listina'!F137=0,\"\",'Prezenční listina'!H137)","v":""}]
["",{"$f":"IF('Prezenční listina'!F138=0,\"\",'Prezenční listina'!F138)","v":""},{"$f":"IF('Prezenční listina'!F138=0,\"\",'Prezenční listina'!B138)","v":""},{"$f":"IF('Prezenční listina'!F138=0,\"\",'Prezenční listina'!C138)","v":""},{"$f":"IF('Prezenční listina'!F138=0,\"\",'Prezenční listina'!D138)","v":""},{"$f":"IF('Prezenční listina'!F138=0,\"\",'Prezenční listina'!E138)","v":""},{"$f":"IF('Prezenční listina'!F138=0,\"\",'Prezenční listina'!H138)","v":""}]
["",{"$f":"IF('Prezenční listina'!F139=0,\"\",'Prezenční listina'!F139)","v":""},{"$f":"IF('Prezenční listina'!F139=0,\"\",'Prezenční listina'!B139)","v":""},{"$f":"IF('Prezenční listina'!F139=0,\"\",'Prezenční listina'!C139)","v":""},{"$f":"IF('Prezenční listina'!F139=0,\"\",'Prezenční listina'!D139)","v":""},{"$f":"IF('Prezenční listina'!F139=0,\"\",'Prezenční listina'!E139)","v":""},{"$f":"IF('Prezenční listina'!F139=0,\"\",'Prezenční listina'!H139)","v":""}]

{"sheet":"Výsledková listina","index":2,"n_rows":146,"n_cols":11,"rows_kept":146,"cut":false,"hidden":false,"merged":[[0,0,0,8],[2,0,2,8],[145,3,151,7],[1,0,1,8],[1,10,13,14]]}
[{"$f":"\"Výsledková listina - Bystřickem kolem Vírské přehrady \"&'Prezenční listina'!O2","v":"Výsledková listina - Bystřickem kolem Vírské přehrady 2019"}]
[{"$f":"'Prezenční listina'!O2-2004&\". ročník\"","v":"15. ročník"},null,null,null,null,null,null,null,null,null,"\nPoté, co jsou dopsány časy VŠECH běžců, stisknout tlačítko 1.řazení \n\n\nVe sloupci B (Pořadí v kategorii) vytvořit posloupnou číselnou řadu pro každou kategorii a poté stisknout tlačítko 2.řazení\n\n\n                      !!! POZOR!!!\n\n               Použití tlačítek je nevratný krok!"]
[{"$f":"'Startovní listina'!A3:G3","v":"2019-05-25"}]
["Celkové pořadí","Pořadí v kategorii","Kategorie","Startovní číslo","Příjmení","Jméno","Narození","Oddíl / Bydliště","Čas"]
[1,1,{"$f":"'Startovní listina'!G37","v":"B"},{"$f":"'Startovní listina'!B37","v":33},{"$f":"'Startovní listina'!C37","v":"Orálek"},{"$f":"'Startovní listina'!D37","v":"Daniel"},{"$f":"'Startovní listina'!E37","v":1970},{"$f":"'Startovní listina'!F37","v":"Behejbrno.com"},"01:48:35"]
[{"$f":"IF('Výsledková listina'!D6<>\"\",A5+1,\"\")","v":2},2,{"$f":"'Startovní listina'!G20","v":"B"},{"$f":"'Startovní listina'!B20","v":16},{"$f":"'Startovní listina'!C20","v":"Vintrlík"},{"$f":"'Startovní listina'!D20","v":"Martin"},{"$f":"'Startovní listina'!E20","v":1977},{"$f":"'Startovní listina'!F20","v":"Triatlon Křepice"},"01:52:16"]
[{"$f":"IF('Výsledková listina'!D7<>\"\",A6+1,\"\")","v":3},1,{"$f":"'Startovní listina'!G8","v":"A"},{"$f":"'Startovní listina'!B8","v":4},{"$f":"'Startovní listina'!C8","v":"Czerný"},{"$f":"'Startovní listina'!D8","v":"Pavel"},{"$f":"'Startovní listina'!E8","v":1981},{"$f":"'Startovní listina'!F8","v":"Never Alone (Brno)"},"01:54:47"]
[{"$f":"IF('Výsledková listina'!D8<>\"\",A7+1,\"\")","v":4},2,{"$f":"'Startovní listina'!G25","v":"A"},{"$f":"'Startovní listina'!B25","v":21},{"$f":"'Startovní listina'!C25","v":"Glier"},{"$f":"'Startovní listina'!D25","v":"Michal"},{"$f":"'Startovní listina'!E25","v":1982},{"$f":"'Startovní listina'!F25","v":"SDH Doubravník"},"01:55:25"]
[{"$f":"IF('Výsledková listina'!D9<>\"\",A8+1,\"\")","v":5},3,{"$f":"'Startovní listina'!G45","v":"B"},{"$f":"'Startovní listina'!B45","v":41},{"$f":"'Startovní listina'!C45","v":"Konečný"},{"$f":"'Startovní listina'!D45","v":"Libor"},{"$f":"'Startovní listina'!E45","v":1971},{"$f":"'Startovní listina'!F45","v":"Kuřim"},"01:59:50"]
[{"$f":"IF('Výsledková listina'!D10<>\"\",A9+1,\"\")","v":6},1,{"$f":"'Startovní listina'!G32","v":"C"},{"$f":"'Startovní listina'!B32","v":28},{"$f":"'Startovní listina'!C32","v":"Svoboda"},{"$f":"'Startovní listina'!D32","v":"Petr"},{"$f":"'Startovní listina'!E32","v":1968},{"$f":"'Startovní listina'!F32","v":"AC Moravská Slavia Brno"},"02:00:08"]
[{"$f":"IF('Výsledková listina'!D11<>\"\",A10+1,\"\")","v":7},2,{"$f":"'Startovní listina'!G33","v":"C"},{"$f":"'Startovní listina'!B33","v":29},{"$f":"'Startovní listina'!C33","v":"Šimunek"},{"$f":"'Startovní listina'!D33","v":"Martin"},{"$f":"'Startovní listina'!E33","v":1966},{"$f":"'Startovní listina'!F33","v":"Botanka Running (Modřice)"},"02:02:29"]
[{"$f":"IF('Výsledková listina'!D12<>\"\",A11+1,\"\")","v":8},4,{"$f":"'Startovní listina'!G36","v":"B"},{"$f":"'Startovní listina'!B36","v":32},{"$f":"'Startovní listina'!C36","v":"Viščor"},{"$f":"'Startovní listina'!D36","v":"Pavel"},{"$f":"'Startovní listina'!E36","v":1974},{"$f":"'Startovní listina'!F36","v":"Brno"},"02:04:15"]
[{"$f":"IF('Výsledková listina'!D13<>\"\",A12+1,\"\")","v":9},3,{"$f":"'Startovní listina'!G31","v":"C"},{"$f":"'Startovní listina'!B31","v":27},{"$f":"'Startovní listina'!C31","v":"Hýbl"},{"$f":"'Startovní listina'!D31","v":"Jiří"},{"$f":"'Startovní listina'!E31","v":1967},{"$f":"'Startovní listina'!F31","v":"Hrušovany u Brna"},"02:06:02"]
[{"$f":"IF('Výsledková listina'!D14<>\"\",A13+1,\"\")","v":10},4,{"$f":"'Startovní listina'!G11","v":"C"},{"$f":"'Startovní listina'!B11","v":7},{"$f":"'Startovní listina'!C11","v":"Koutník"},{"$f":"'Startovní listina'!D11","v":"Lumír"},{"$f":"'Startovní listina'!E11","v":1967},{"$f":"'Startovní listina'!F11","v":"A.O.Spartak Vrchlabí"},"02:08:29"]
[{"$f":"IF('Výsledková listina'!D15<>\"\",A14+1,\"\")","v":11},5,{"$f":"'Startovní listina'!G10","v":"B"},{"$f":"'Startovní listina'!B10","v":6},{"$f":"'Startovní listina'!C10","v":"Hübner"},{"$f":"'Startovní listina'!D10","v":"Tomáš"},{"$f":"'Startovní listina'!E10","v":1979},{"$f":"'Startovní listina'!F10","v":"SDH Bolešín"},"02:10:04"]
[{"$f":"IF('Výsledková listina'!D16<>\"\",A15+1,\"\")","v":12},6,{"$f":"'Startovní listina'!G30","v":"B"},{"$f":"'Startovní listina'!B30","v":26},{"$f":"'Startovní listina'!C30","v":"Kropáček"},{"$f":"'Startovní listina'!D30","v":"Jaroslav"},{"$f":"'Startovní listina'!E30","v":1970},{"$f":"'Startovní listina'!F30","v":"Brno"},"02:10:54"]
[{"$f":"IF('Výsledková listina'!D17<>\"\",A16+1,\"\")","v":13},1,{"$f":"'Startovní listina'!G40","v":"G"},{"$f":"'Startovní listina'!B40","v":36},{"$f":"'Startovní listina'!C40","v":"Klinecká"},{"$f":"'Startovní listina'!D40","v":"Jana"},{"$f":"'Startovní listina'!E40","v":1981},{"$f":"'Startovní listina'!F40","v":"Hlinsko"},"02:13:46"]
[{"$f":"IF('Výsledková listina'!D18<>\"\",A17+1,\"\")","v":14},3,{"$f":"'Startovní listina'!G7","v":"A"},{"$f":"'Startovní listina'!B7","v":3},{"$f":"'Startovní listina'!C7","v":"Hanák"},{"$f":"'Startovní listina'!D7","v":"Jakub"},{"$f":"'Startovní listina'!E7","v":1986},{"$f":"'Startovní listina'!F7","v":"Plant Powered Runners (Vír)"},"02:14:03"]
[{"$f":"IF('Výsledková listina'!D19<>\"\",A18+1,\"\")","v":15},7,{"$f":"'Startovní listina'!G41","v":"B"},{"$f":"'Startovní listina'!B41","v":37},{"$f":"'Startovní listina'!C41","v":"Kratochvíl"},{"$f":"'Startovní listina'!D41","v":"Jaroslav"},{"$f":"'Startovní listina'!E41","v":1977},{"$f":"'Startovní listina'!F41","v":"SDH Hluboké"},"02:14:35"]
[{"$f":"IF('Výsledková listina'!D20<>\"\",A19+1,\"\")","v":16},4,{"$f":"'Startovní listina'!G27","v":"A"},{"$f":"'Startovní listina'!B27","v":23},{"$f":"'Startovní listina'!C27","v":"Koutský"},{"$f":"'Startovní listina'!D27","v":"Tomáš"},{"$f":"'Startovní listina'!E27","v":1987},{"$f":"'Startovní listina'!F27","v":"Ledová stěna Vír"},"02:15:24"]
[{"$f":"IF('Výsledková listina'!D21<>\"\",A20+1,\"\")","v":17},1,{"$f":"'Startovní listina'!G42","v":"H"},{"$f":"'Startovní listina'!B42","v":38},{"$f":"'Startovní listina'!C42","v":"Komárková"},{"$f":"'Startovní listina'!D42","v":"Zdeňka"},{"$f":"'Startovní listina'!E42","v":1974},{"$f":"'Startovní listina'!F42","v":"SDH Bolešín"},"02:15:31"]
[{"$f":"IF('Výsledková listina'!D22<>\"\",A21+1,\"\")","v":18},1,{"$f":"'Startovní listina'!G26","v":"F"},{"$f":"'Startovní listina'!B26","v":22},{"$f":"'Startovní listina'!C26","v":"Zemánková"},{"$f":"'Startovní listina'!D26","v":"Eva"},{"$f":"'Startovní listina'!E26","v":1991},{"$f":"'Startovní listina'!F26","v":"AC Moravská Slavia Brno"},"02:18:00"]
[{"$f":"IF('Výsledková listina'!D23<>\"\",A22+1,\"\")","v":19},8,{"$f":"'Startovní listina'!G43","v":"B"},{"$f":"'Startovní listina'!B43","v":39},{"$f":"'Startovní listina'!C43","v":"Petrů"},{"$f":"'Startovní listina'!D43","v":"Roman"},{"$f":"'Startovní listina'!E43","v":1976},{"$f":"'Startovní listina'!F43","v":"Oddíl 2015"},"02:22:32"]
[{"$f":"IF('Výsledková listina'!D24<>\"\",A23+1,\"\")","v":20},5,{"$f":"'Startovní listina'!G38","v":"C"},{"$f":"'Startovní listina'!B38","v":34},{"$f":"'Startovní listina'!C38","v":"Nosek"},{"$f":"'Startovní listina'!D38","v":"Pavel "},{"$f":"'Startovní listina'!E38","v":1965},{"$f":"'Startovní listina'!F38","v":"ASK Slavkov"},"02:23:08"]
[{"$f":"IF('Výsledková listina'!D25<>\"\",A24+1,\"\")","v":21},5,{"$f":"'Startovní listina'!G6","v":"A"},{"$f":"'Startovní listina'!B6","v":2},{"$f":"'Startovní listina'!C6","v":"Caha"},{"$f":"'Startovní listina'!D6","v":"Zbyněk"},{"$f":"'Startovní listina'!E6","v":1984},{"$f":"'Startovní listina'!F6","v":"Atletic Třebíč"},"02:23:18"]
[{"$f":"IF('Výsledková listina'!D26<>\"\",A25+1,\"\")","v":22},9,{"$f":"'Startovní listina'!G35","v":"B"},{"$f":"'Startovní listina'!B35","v":31},{"$f":"'Startovní listina'!C35","v":"Prášek"},{"$f":"'Startovní listina'!D35","v":"Ondřej"},{"$f":"'Startovní listina'!E35","v":1978},{"$f":"'Startovní listina'!F35","v":"Kajak VUT (Brno)"},"02:24:11"]
[{"$f":"IF('Výsledková listina'!D27<>\"\",A26+1,\"\")","v":23},2,{"$f":"'Startovní listina'!G28","v":"H"},{"$f":"'Startovní listina'!B28","v":24},{"$f":"'Startovní listina'!C28","v":"Matulová"},{"$f":"'Startovní listina'!D28","v":"Martina"},{"$f":"'Startovní listina'!E28","v":1972},{"$f":"'Startovní listina'!F28","v":"Brno"},"02:28:18"]
[{"$f":"IF('Výsledková listina'!D28<>\"\",A27+1,\"\")","v":24},6,{"$f":"'Startovní listina'!G44","v":"C"},{"$f":"'Startovní listina'!B44","v":40},{"$f":"'Startovní listina'!C44","v":"Žák"},{"$f":"'Startovní listina'!D44","v":"Miroslav"},{"$f":"'Startovní listina'!E44","v":1965},{"$f":"'Startovní listina'!F44","v":"Stříbrné Hory"},"02:28:40"]
[{"$f":"IF('Výsledková listina'!D29<>\"\",A28+1,\"\")","v":25},1,{"$f":"'Startovní listina'!G18","v":"D"},{"$f":"'Startovní listina'!B18","v":14},{"$f":"'Startovní listina'!C18","v":"Brožek"},{"$f":"'Startovní listina'!D18","v":"Radmil"},{"$f":"'Startovní listina'!E18","v":1954},{"$f":"'Startovní listina'!F18","v":"KRB Chrudim"},"02:32:33"]
[{"$f":"IF('Výsledková listina'!D30<>\"\",A29+1,\"\")","v":26},6,{"$f":"'Startovní listina'!G39","v":"A"},{"$f":"'Startovní listina'!B39","v":35},{"$f":"'Startovní listina'!C39","v":"Svoboda"},{"$f":"'Startovní listina'!D39","v":"Vojtěch"},{"$f":"'Startovní listina'!E39","v":1994},{"$f":"'Startovní listina'!F39","v":"Velké Meziříčí"},"02:33:52"]
[{"$f":"IF('Výsledková listina'!D31<>\"\",A30+1,\"\")","v":27},2,{"$f":"'Startovní listina'!G46","v":"D"},{"$f":"'Startovní listina'!B46","v":42},{"$f":"'Startovní listina'!C46","v":"Sedláček"},{"$f":"'Startovní listina'!D46","v":"Svatopluk"},{"$f":"'Startovní listina'!E46","v":1957},{"$f":"'Startovní listina'!F46","v":"AC Moravská Slavia Brno"},"02:36:00"]
[{"$f":"IF('Výsledková listina'!D32<>\"\",A31+1,\"\")","v":28},7,{"$f":"'Startovní listina'!G12","v":"A"},{"$f":"'Startovní listina'!B12","v":8},{"$f":"'Startovní listina'!C12","v":"Podsedník"},{"$f":"'Startovní listina'!D12","v":"Marek"},{"$f":"'Startovní listina'!E12","v":1985},{"$f":"'Startovní listina'!F12","v":"Brno"},"02:41:19"]
[{"$f":"IF('Výsledková listina'!D33<>\"\",A32+1,\"\")","v":29},10,{"$f":"'Startovní listina'!G5","v":"B"},{"$f":"'Startovní listina'!B5","v":1},{"$f":"'Startovní listina'!C5","v":"Klement"},{"$f":"'Startovní listina'!D5","v":"Pavel"},{"$f":"'Startovní listina'!E5","v":1972},{"$f":"'Startovní listina'!F5","v":"Atletic Třebíč"},"02:44:24"]
[{"$f":"IF('Výsledková listina'!D34<>\"\",A33+1,\"\")","v":30},11,{"$f":"'Startovní listina'!G19","v":"B"},{"$f":"'Startovní listina'!B19","v":15},{"$f":"'Startovní listina'!C19","v":"Vránek"},{"$f":"'Startovní listina'!D19","v":"David"},{"$f":"'Startovní listina'!E19","v":1978},{"$f":"'Startovní listina'!F19","v":"Brno"},"02:47:00"]
[{"$f":"IF('Výsledková listina'!D35<>\"\",A34+1,\"\")","v":31},7,{"$f":"'Startovní listina'!G21","v":"C"},{"$f":"'Startovní listina'!B21","v":17},{"$f":"'Startovní listina'!C21","v":"Nádhera"},{"$f":"'Startovní listina'!D21","v":"Petr"},{"$f":"'Startovní listina'!E21","v":1967},{"$f":"'Startovní listina'!F21","v":"Hradec Králové"},"02:48:37"]
[{"$f":"IF('Výsledková listina'!D36<>\"\",A35+1,\"\")","v":32},8,{"$f":"'Startovní listina'!G14","v":"C"},{"$f":"'Startovní listina'!B14","v":10},{"$f":"'Startovní listina'!C14","v":"Novotný"},{"$f":"'Startovní listina'!D14","v":"Libor"},{"$f":"'Startovní listina'!E14","v":1961},{"$f":"'Startovní listina'!F14","v":"Kuřim"},"02:50:45"]
[{"$f":"IF('Výsledková listina'!D37<>\"\",A36+1,\"\")","v":33},3,{"$f":"'Startovní listina'!G29","v":"H"},{"$f":"'Startovní listina'!B29","v":25},{"$f":"'Startovní listina'!C29","v":"Lorenzová"},{"$f":"'Startovní listina'!D29","v":"Dana"},{"$f":"'Startovní listina'!E29","v":1968},{"$f":"'Startovní listina'!F29","v":"Nové Město na Moravě"},"03:06:02"]
[{"$f":"IF('Výsledková listina'!D38<>\"\",A37+1,\"\")","v":34},3,{"$f":"'Startovní listina'!G15","v":"D"},{"$f":"'Startovní listina'!B15","v":11},{"$f":"'Startovní listina'!C15","v":"Mareš"},{"$f":"'Startovní listina'!D15","v":"Bohumil"},{"$f":"'Startovní listina'!E15","v":1951},{"$f":"'Startovní listina'!F15","v":"Posilovna Průvan Brno"},"03:10:52"]
[{"$f":"IF('Výsledková listina'!D39<>\"\",A38+1,\"\")","v":35},12,{"$f":"'Startovní listina'!G24","v":"B"},{"$f":"'Startovní listina'!B24","v":20},{"$f":"'Startovní listina'!C24","v":"Crha"},{"$f":"'Startovní listina'!D24","v":"Radek"},{"$f":"'Startovní listina'!E24","v":1979},{"$f":"'Startovní listina'!F24","v":"Vidonín 10"},"03:10:54"]
[{"$f":"IF('Výsledková listina'!D40<>\"\",A39+1,\"\")","v":36},13,{"$f":"'Startovní listina'!G34","v":"B"},{"$f":"'Startovní listina'!B34","v":30},{"$f":"'Startovní listina'!C34","v":"Faja"},{"$f":"'Startovní listina'!D34","v":"Ondřej"},{"$f":"'Startovní listina'!E34","v":1976},{"$f":"'Startovní listina'!F34","v":"Brno"},"03:13:47"]
[{"$f":"IF('Výsledková listina'!D41<>\"\",A40+1,\"\")","v":37},4,{"$f":"'Startovní listina'!G17","v":"D"},{"$f":"'Startovní listina'!B17","v":13},{"$f":"'Startovní listina'!C17","v":"Petržílek"},{"$f":"'Startovní listina'!D17","v":"Zdeněk"},{"$f":"'Startovní listina'!E17","v":1955},{"$f":"'Startovní listina'!F17","v":"KRB Chrudim"},"03:18:06"]
[{"$f":"IF('Výsledková listina'!D42<>\"\",A41+1,\"\")","v":38},9,{"$f":"'Startovní listina'!G16","v":"C"},{"$f":"'Startovní listina'!B16","v":12},{"$f":"'Startovní listina'!C16","v":"Krátký"},{"$f":"'Startovní listina'!D16","v":"Josef"},{"$f":"'Startovní listina'!E16","v":1965},{"$f":"'Startovní listina'!F16","v":"Hvězda Pardubice"},"03:56:45"]
[{"$f":"IF('Výsledková listina'!D43<>\"\",A42+1,\"\")","v":39},1,{"$f":"'Startovní listina'!G13","v":"E"},{"$f":"'Startovní listina'!B13","v":9},{"$f":"'Startovní listina'!C13","v":"Holý"},{"$f":"'Startovní listina'!D13","v":"Josef"},{"$f":"'Startovní listina'!E13","v":1941},{"$f":"'Startovní listina'!F13","v":"AC Moravská Slavia Brno"},"04:03:02"]
[{"$f":"IF('Výsledková listina'!D44<>\"\",A43+1,\"\")","v":40},8,{"$f":"'Startovní listina'!G9","v":"A"},{"$f":"'Startovní listina'!B9","v":5},{"$f":"'Startovní listina'!C9","v":"Pozler"},{"$f":"'Startovní listina'!D9","v":"Jiří"},{"$f":"'Startovní listina'!E9","v":1983},{"$f":"'Startovní listina'!F9","v":"Never Alone (Brno)"},"DNF"]
[{"$f":"IF('Výsledková listina'!D45<>\"\",A44+1,\"\")","v":41},4,{"$f":"'Startovní listina'!G22","v":"H"},{"$f":"'Startovní listina'!B22","v":18},{"$f":"'Startovní listina'!C22","v":"Nádherová"},{"$f":"'Startovní listina'!D22","v":"Hana"},{"$f":"'Startovní listina'!E22","v":1968},{"$f":"'Startovní listina'!F22","v":"Hradec Králové"},"DNF"]
[{"$f":"IF('Výsledková listina'!D46<>\"\",A45+1,\"\")","v":42},5,{"$f":"'Startovní listina'!G23","v":"H"},{"$f":"'Startovní listina'!B23","v":19},{"$f":"'Startovní listina'!C23","v":"Podmelová"},{"$f":"'Startovní listina'!D23","v":"Vilma"},{"$f":"'Startovní listina'!E23","v":1962},{"$f":"'Startovní listina'!F23","v":"ČAU (Brno)"},"DNF"]
[{"$f":"IF('Výsledková listina'!D47<>\"\",A46+1,\"\")","v":""},null,{"$f":"'Startovní listina'!G47","v":""},{"$f":"'Startovní listina'!B47","v":""},{"$f":"'Startovní listina'!C47","v":""},{"$f":"'Startovní listina'!D47","v":""},{"$f":"'Startovní listina'!E47","v":""},{"$f":"'Startovní listina'!F47","v":""}]
[{"$f":"IF('Výsledková listina'!D48<>\"\",A47+1,\"\")","v":""},null,{"$f":"'Startovní listina'!G48","v":""},{"$f":"'Startovní listina'!B48","v":""},{"$f":"'Startovní listina'!C48","v":""},{"$f":"'Startovní listina'!D48","v":""},{"$f":"'Startovní listina'!E48","v":""},{"$f":"'Startovní listina'!F48","v":""}]
[{"$f":"IF('Výsledková listina'!D49<>\"\",A48+1,\"\")","v":""},null,{"$f":"'Startovní listina'!G49","v":""},{"$f":"'Startovní listina'!B49","v":""},{"$f":"'Startovní listina'!C49","v":""},{"$f":"'Startovní listina'!D49","v":""},{"$f":"'Startovní listina'!E49","v":""},{"$f":"'Startovní listina'!F49","v":""}]
[{"$f":"IF('Výsledková listina'!D50<>\"\",A49+1,\"\")","v":""},null,{"$f":"'Startovní listina'!G50","v":""},{"$f":"'Startovní listina'!B50","v":""},{"$f":"'Startovní listina'!C50","v":""},{"$f":"'Startovní listina'!D50","v":""},{"$f":"'Startovní listina'!E50","v":""},{"$f":"'Startovní listina'!F50","v":""}]
[{"$f":"IF('Výsledková listina'!D51<>\"\",A50+1,\"\")","v":""},null,{"$f":"'Startovní listina'!G51","v":""},{"$f":"'Startovní listina'!B51","v":""},{"$f":"'Startovní listina'!C51","v":""},{"$f":"'Startovní listina'!D51","v":""},{"$f":"'Startovní listina'!E51","v":""},{"$f":"'Startovní listina'!F51","v":""}]
[{"$f":"IF('Výsledková listina'!D52<>\"\",A51+1,\"\")","v":""},null,{"$f":"'Startovní listina'!G52","v":""},{"$f":"'Startovní listina'!B52","v":""},{"$f":"'Startovní listina'!C52","v":""},{"$f":"'Startovní listina'!D52","v":""},{"$f":"'Startovní listina'!E52","v":""},{"$f":"'Startovní listina'!F52","v":""}]
[{"$f":"IF('Výsledková listina'!D53<>\"\",A52+1,\"\")","v":""},null,{"$f":"'Startovní listina'!G53","v":""},{"$f":"'Startovní listina'!B53","v":""},{"$f":"'Startovní listina'!C53","v":""},{"$f":"'Startovní listina'!D53","v":""},{"$f":"'Startovní listina'!E53","v":""},{"$f":"'Startovní listina'!F53","v":""}]
[{"$f":"IF('Výsledková listina'!D54<>\"\",A53+1,\"\")","v":""},null,{"$f":"'Startovní listina'!G54","v":""},{"$f":"'Startovní listina'!B54","v":""},{"$f":"'Startovní listina'!C54","v":""},{"$f":"'Startovní listina'!D54","v":""},{"$f":"'Startovní listina'!E54","v":""},{"$f":"'Startovní listina'!F54","v":""}]
[{"$f":"IF('Výsledková listina'!D55<>\"\",A54+1,\"\")","v":""},null,{"$f":"'Startovní listina'!G55","v":""},{"$f":"'Startovní listina'!B55","v":""},{"$f":"'Startovní listina'!C55","v":""},{"$f":"'Startovní listina'!D55","v":""},{"$f":"'Startovní listina'!E55","v":""},{"$f":"'Startovní listina'!F55","v":""}]
[{"$f":"IF('Výsledková listina'!D56<>\"\",A55+1,\"\")","v":""},null,{"$f":"'Startovní listina'!G56","v":""},{"$f":"'Startovní listina'!B56","v":""},{"$f":"'Startovní listina'!C56","v":""},{"$f":"'Startovní listina'!D56","v":""},{"$f":"'Startovní listina'!E56","v":""},{"$f":"'Startovní listina'!F56","v":""}]
[{"$f":"IF('Výsledková listina'!D57<>\"\",A56+1,\"\")","v":""},null,{"$f":"'Startovní listina'!G57","v":""},{"$f":"'Startovní listina'!B57","v":""},{"$f":"'Startovní listina'!C57","v":""},{"$f":"'Startovní listina'!D57","v":""},{"$f":"'Startovní listina'!E57","v":""},{"$f":"'Startovní listina'!F57","v":""}]
[{"$f":"IF('Výsledková listina'!D58<>\"\",A57+1,\"\")","v":""},null,{"$f":"'Startovní listina'!G58","v":""},{"$f":"'Startovní listina'!B58","v":""},{"$f":"'Startovní listina'!C58","v":""},{"$f":"'Startovní listina'!D58","v":""},{"$f":"'Startovní listina'!E58","v":""},{"$f":"'Startovní listina'!F58","v":""}]
[{"$f":"IF('Výsledková listina'!D59<>\"\",A58+1,\"\")","v":""},null,{"$f":"'Startovní listina'!G59","v":""},{"$f":"'Startovní listina'!B59","v":""},{"$f":"'Startovní listina'!C59","v":""},{"$f":"'Startovní listina'!D59","v":""},{"$f":"'Startovní listina'!E59","v":""},{"$f":"'Startovní listina'!F59","v":""}]
[{"$f":"IF('Výsledková listina'!D60<>\"\",A59+1,\"\")","v":""},null,{"$f":"'Startovní listina'!G60","v":""},{"$f":"'Startovní listina'!B60","v":""},{"$f":"'Startovní listina'!C60","v":""},{"$f":"'Startovní listina'!D60","v":""},{"$f":"'Startovní listina'!E60","v":""},{"$f":"'Startovní listina'!F60","v":""}]
[{"$f":"IF('Výsledková listina'!D61<>\"\",A60+1,\"\")","v":""},null,{"$f":"'Startovní listina'!G61","v":""},{"$f":"'Startovní listina'!B61","v":""},{"$f":"'Startovní listina'!C61","v":""},{"$f":"'Startovní listina'!D61","v":""},{"$f":"'Startovní listina'!E61","v":""},{"$f":"'Startovní listina'!F61","v":""}]
[{"$f":"IF('Výsledková listina'!D62<>\"\",A61+1,\"\")","v":""},null,{"$f":"'Startovní listina'!G62","v":""},{"$f":"'Startovní listina'!B62","v":""},{"$f":"'Startovní listina'!C62","v":""},{"$f":"'Startovní listina'!D62","v":""},{"$f":"'Startovní listina'!E62","v":""},{"$f":"'Startovní listina'!F62","v":""}]
[{"$f":"IF('Výsledková listina'!D63<>\"\",A62+1,\"\")","v":""},null,{"$f":"'Startovní listina'!G63","v":""},{"$f":"'Startovní listina'!B63","v":""},{"$f":"'Startovní listina'!C63","v":""},{"$f":"'Startovní listina'!D63","v":""},{"$f":"'Startovní listina'!E63","v":""},{"$f":"'Startovní listina'!F63","v":""}]
[{"$f":"IF('Výsledková listina'!D64<>\"\",A63+1,\"\")","v":""},null,{"$f":"'Startovní listina'!G64","v":""},{"$f":"'Startovní listina'!B64","v":""},{"$f":"'Startovní listina'!C64","v":""},{"$f":"'Startovní listina'!D64","v":""},{"$f":"'Startovní listina'!E64","v":""},{"$f":"'Startovní listina'!F64","v":""}]
[{"$f":"IF('Výsledková listina'!D65<>\"\",A64+1,\"\")","v":""},null,{"$f":"'Startovní listina'!G65","v":""},{"$f":"'Startovní listina'!B65","v":""},{"$f":"'Startovní listina'!C65","v":""},{"$f":"'Startovní listina'!D65","v":""},{"$f":"'Startovní listina'!E65","v":""},{"$f":"'Startovní listina'!F65","v":""}]
[{"$f":"IF('Výsledková listina'!D66<>\"\",A65+1,\"\")","v":""},null,{"$f":"'Startovní listina'!G66","v":""},{"$f":"'Startovní listina'!B66","v":""},{"$f":"'Startovní listina'!C66","v":""},{"$f":"'Startovní listina'!D66","v":""},{"$f":"'Startovní listina'!E66","v":""},{"$f":"'Startovní listina'!F66","v":""}]
[{"$f":"IF('Výsledková listina'!D67<>\"\",A66+1,\"\")","v":""},null,{"$f":"'Startovní listina'!G67","v":""},{"$f":"'Startovní listina'!B67","v":""},{"$f":"'Startovní listina'!C67","v":""},{"$f":"'Startovní listina'!D67","v":""},{"$f":"'Startovní listina'!E67","v":""},{"$f":"'Startovní listina'!F67","v":""}]
[{"$f":"IF('Výsledková listina'!D68<>\"\",A67+1,\"\")","v":""},null,{"$f":"'Startovní listina'!G68","v":""},{"$f":"'Startovní listina'!B68","v":""},{"$f":"'Startovní listina'!C68","v":""},{"$f":"'Startovní listina'!D68","v":""},{"$f":"'Startovní listina'!E68","v":""},{"$f":"'Startovní listina'!F68","v":""}]
[{"$f":"IF('Výsledková listina'!D69<>\"\",A68+1,\"\")","v":""},null,{"$f":"'Startovní listina'!G69","v":""},{"$f":"'Startovní listina'!B69","v":""},{"$f":"'Startovní listina'!C69","v":""},{"$f":"'Startovní listina'!D69","v":""},{"$f":"'Startovní listina'!E69","v":""},{"$f":"'Startovní listina'!F69","v":""}]
[{"$f":"IF('Výsledková listina'!D70<>\"\",A69+1,\"\")","v":""},null,{"$f":"'Startovní listina'!G70","v":""},{"$f":"'Startovní listina'!B70","v":""},{"$f":"'Startovní listina'!C70","v":""},{"$f":"'Startovní listina'!D70","v":""},{"$f":"'Startovní listina'!E70","v":""},{"$f":"'Startovní listina'!F70","v":""}]
[{"$f":"IF('Výsledková listina'!D71<>\"\",A70+1,\"\")","v":""},null,{"$f":"'Startovní listina'!G71","v":""},{"$f":"'Startovní listina'!B71","v":""},{"$f":"'Startovní listina'!C71","v":""},{"$f":"'Startovní listina'!D71","v":""},{"$f":"'Startovní listina'!E71","v":""},{"$f":"'Startovní listina'!F71","v":""}]
[{"$f":"IF('Výsledková listina'!D72<>\"\",A71+1,\"\")","v":""},null,{"$f":"'Startovní listina'!G72","v":""},{"$f":"'Startovní listina'!B72","v":""},{"$f":"'Startovní listina'!C72","v":""},{"$f":"'Startovní listina'!D72","v":""},{"$f":"'Startovní listina'!E72","v":""},{"$f":"'Startovní listina'!F72","v":""}]
[{"$f":"IF('Výsledková listina'!D73<>\"\",A72+1,\"\")","v":""},null,{"$f":"'Startovní listina'!G73","v":""},{"$f":"'Startovní listina'!B73","v":""},{"$f":"'Startovní listina'!C73","v":""},{"$f":"'Startovní listina'!D73","v":""},{"$f":"'Startovní listina'!E73","v":""},{"$f":"'Startovní listina'!F73","v":""}]
[{"$f":"IF('Výsledková listina'!D74<>\"\",A73+1,\"\")","v":""},null,{"$f":"'Startovní listina'!G74","v":""},{"$f":"'Startovní listina'!B74","v":""},{"$f":"'Startovní listina'!C74","v":""},{"$f":"'Startovní listina'!D74","v":""},{"$f":"'Startovní listina'!E74","v":""},{"$f":"'Startovní listina'!F74","v":""}]
[{"$f":"IF('Výsledková listina'!D75<>\"\",A74+1,\"\")","v":""},null,{"$f":"'Startovní listina'!G75","v":""},{"$f":"'Startovní listina'!B75","v":""},{"$f":"'Startovní listina'!C75","v":""},{"$f":"'Startovní listina'!D75","v":""},{"$f":"'Startovní listina'!E75","v":""},{"$f":"'Startovní listina'!F75","v":""}]
[{"$f":"IF('Výsledková listina'!D76<>\"\",A75+1,\"\")","v":""},null,{"$f":"'Startovní listina'!G76","v":""},{"$f":"'Startovní listina'!B76","v":""},{"$f":"'Startovní listina'!C76","v":""},{"$f":"'Startovní listina'!D76","v":""},{"$f":"'Startovní listina'!E76","v":""},{"$f":"'Startovní listina'!F76","v":""}]
[{"$f":"IF('Výsledková listina'!D77<>\"\",A76+1,\"\")","v":""},null,{"$f":"'Startovní listina'!G77","v":""},{"$f":"'Startovní listina'!B77","v":""},{"$f":"'Startovní listina'!C77","v":""},{"$f":"'Startovní listina'!D77","v":""},{"$f":"'Startovní listina'!E77","v":""},{"$f":"'Startovní listina'!F77","v":""}]
[{"$f":"IF('Výsledková listina'!D78<>\"\",A77+1,\"\")","v":""},null,{"$f":"'Startovní listina'!G78","v":""},{"$f":"'Startovní listina'!B78","v":""},{"$f":"'Startovní listina'!C78","v":""},{"$f":"'Startovní listina'!D78","v":""},{"$f":"'Startovní listina'!E78","v":""},{"$f":"'Startovní listina'!F78","v":""}]
[{"$f":"IF('Výsledková listina'!D79<>\"\",A78+1,\"\")","v":""},null,{"$f":"'Startovní listina'!G79","v":""},{"$f":"'Startovní listina'!B79","v":""},{"$f":"'Startovní listina'!C79","v":""},{"$f":"'Startovní listina'!D79","v":""},{"$f":"'Startovní listina'!E79","v":""},{"$f":"'Startovní listina'!F79","v":""}]
[{"$f":"IF('Výsledková listina'!D80<>\"\",A79+1,\"\")","v":""},null,{"$f":"'Startovní listina'!G80","v":""},{"$f":"'Startovní listina'!B80","v":""},{"$f":"'Startovní listina'!C80","v":""},{"$f":"'Startovní listina'!D80","v":""},{"$f":"'Startovní listina'!E80","v":""},{"$f":"'Startovní listina'!F80","v":""}]
[{"$f":"IF('Výsledková listina'!D81<>\"\",A80+1,\"\")","v":""},null,{"$f":"'Startovní listina'!G81","v":""},{"$f":"'Startovní listina'!B81","v":""},{"$f":"'Startovní listina'!C81","v":""},{"$f":"'Startovní listina'!D81","v":""},{"$f":"'Startovní listina'!E81","v":""},{"$f":"'Startovní listina'!F81","v":""}]
[{"$f":"IF('Výsledková listina'!D82<>\"\",A81+1,\"\")","v":""},null,{"$f":"'Startovní listina'!G82","v":""},{"$f":"'Startovní listina'!B82","v":""},{"$f":"'Startovní listina'!C82","v":""},{"$f":"'Startovní listina'!D82","v":""},{"$f":"'Startovní listina'!E82","v":""},{"$f":"'Startovní listina'!F82","v":""}]
[{"$f":"IF('Výsledková listina'!D83<>\"\",A82+1,\"\")","v":""},null,{"$f":"'Startovní listina'!G83","v":""},{"$f":"'Startovní listina'!B83","v":""},{"$f":"'Startovní listina'!C83","v":""},{"$f":"'Startovní listina'!D83","v":""},{"$f":"'Startovní listina'!E83","v":""},{"$f":"'Startovní listina'!F83","v":""}]
[{"$f":"IF('Výsledková listina'!D84<>\"\",A83+1,\"\")","v":""},null,{"$f":"'Startovní listina'!G84","v":""},{"$f":"'Startovní listina'!B84","v":""},{"$f":"'Startovní listina'!C84","v":""},{"$f":"'Startovní listina'!D84","v":""},{"$f":"'Startovní listina'!E84","v":""},{"$f":"'Startovní listina'!F84","v":""}]
[{"$f":"IF('Výsledková listina'!D85<>\"\",A84+1,\"\")","v":""},null,{"$f":"'Startovní listina'!G85","v":""},{"$f":"'Startovní listina'!B85","v":""},{"$f":"'Startovní listina'!C85","v":""},{"$f":"'Startovní listina'!D85","v":""},{"$f":"'Startovní listina'!E85","v":""},{"$f":"'Startovní listina'!F85","v":""}]
[{"$f":"IF('Výsledková listina'!D86<>\"\",A85+1,\"\")","v":""},null,{"$f":"'Startovní listina'!G86","v":""},{"$f":"'Startovní listina'!B86","v":""},{"$f":"'Startovní listina'!C86","v":""},{"$f":"'Startovní listina'!D86","v":""},{"$f":"'Startovní listina'!E86","v":""},{"$f":"'Startovní listina'!F86","v":""}]
[{"$f":"IF('Výsledková listina'!D87<>\"\",A86+1,\"\")","v":""},null,{"$f":"'Startovní listina'!G87","v":""},{"$f":"'Startovní listina'!B87","v":""},{"$f":"'Startovní listina'!C87","v":""},{"$f":"'Startovní listina'!D87","v":""},{"$f":"'Startovní listina'!E87","v":""},{"$f":"'Startovní listina'!F87","v":""}]
[{"$f":"IF('Výsledková listina'!D88<>\"\",A87+1,\"\")","v":""},null,{"$f":"'Startovní listina'!G88","v":""},{"$f":"'Startovní listina'!B88","v":""},{"$f":"'Startovní listina'!C88","v":""},{"$f":"'Startovní listina'!D88","v":""},{"$f":"'Startovní listina'!E88","v":""},{"$f":"'Startovní listina'!F88","v":""}]
[{"$f":"IF('Výsledková listina'!D89<>\"\",A88+1,\"\")","v":""},null,{"$f":"'Startovní listina'!G89","v":""},{"$f":"'Startovní listina'!B89","v":""},{"$f":"'Startovní listina'!C89","v":""},{"$f":"'Startovní listina'!D89","v":""},{"$f":"'Startovní listina'!E89","v":""},{"$f":"'Startovní listina'!F89","v":""}]
[{"$f":"IF('Výsledková listina'!D90<>\"\",A89+1,\"\")","v":""},null,{"$f":"'Startovní listina'!G90","v":""},{"$f":"'Startovní listina'!B90","v":""},{"$f":"'Startovní listina'!C90","v":""},{"$f":"'Startovní listina'!D90","v":""},{"$f":"'Startovní listina'!E90","v":""},{"$f":"'Startovní listina'!F90","v":""}]
[{"$f":"IF('Výsledková listina'!D91<>\"\",A90+1,\"\")","v":""},null,{"$f":"'Startovní listina'!G91","v":""},{"$f":"'Startovní listina'!B91","v":""},{"$f":"'Startovní listina'!C91","v":""},{"$f":"'Startovní listina'!D91","v":""},{"$f":"'Startovní listina'!E91","v":""},{"$f":"'Startovní listina'!F91","v":""}]
[{"$f":"IF('Výsledková listina'!D92<>\"\",A91+1,\"\")","v":""},null,{"$f":"'Startovní listina'!G92","v":""},{"$f":"'Startovní listina'!B92","v":""},{"$f":"'Startovní listina'!C92","v":""},{"$f":"'Startovní listina'!D92","v":""},{"$f":"'Startovní listina'!E92","v":""},{"$f":"'Startovní listina'!F92","v":""}]
[{"$f":"IF('Výsledková listina'!D93<>\"\",A92+1,\"\")","v":""},null,{"$f":"'Startovní listina'!G93","v":""},{"$f":"'Startovní listina'!B93","v":""},{"$f":"'Startovní listina'!C93","v":""},{"$f":"'Startovní listina'!D93","v":""},{"$f":"'Startovní listina'!E93","v":""},{"$f":"'Startovní listina'!F93","v":""}]
[{"$f":"IF('Výsledková listina'!D94<>\"\",A93+1,\"\")","v":""},null,{"$f":"'Startovní listina'!G94","v":""},{"$f":"'Startovní listina'!B94","v":""},{"$f":"'Startovní listina'!C94","v":""},{"$f":"'Startovní listina'!D94","v":""},{"$f":"'Startovní listina'!E94","v":""},{"$f":"'Startovní listina'!F94","v":""}]
[{"$f":"IF('Výsledková listina'!D95<>\"\",A94+1,\"\")","v":""},null,{"$f":"'Startovní listina'!G95","v":""},{"$f":"'Startovní listina'!B95","v":""},{"$f":"'Startovní listina'!C95","v":""},{"$f":"'Startovní listina'!D95","v":""},{"$f":"'Startovní listina'!E95","v":""},{"$f":"'Startovní listina'!F95","v":""}]
[{"$f":"IF('Výsledková listina'!D96<>\"\",A95+1,\"\")","v":""},null,{"$f":"'Startovní listina'!G96","v":""},{"$f":"'Startovní listina'!B96","v":""},{"$f":"'Startovní listina'!C96","v":""},{"$f":"'Startovní listina'!D96","v":""},{"$f":"'Startovní listina'!E96","v":""},{"$f":"'Startovní listina'!F96","v":""}]
[{"$f":"IF('Výsledková listina'!D97<>\"\",A96+1,\"\")","v":""},null,{"$f":"'Startovní listina'!G97","v":""},{"$f":"'Startovní listina'!B97","v":""},{"$f":"'Startovní listina'!C97","v":""},{"$f":"'Startovní listina'!D97","v":""},{"$f":"'Startovní listina'!E97","v":""},{"$f":"'Startovní listina'!F97","v":""}]
[{"$f":"IF('Výsledková listina'!D98<>\"\",A97+1,\"\")","v":""},null,{"$f":"'Startovní listina'!G98","v":""},{"$f":"'Startovní listina'!B98","v":""},{"$f":"'Startovní listina'!C98","v":""},{"$f":"'Startovní listina'!D98","v":""},{"$f":"'Startovní listina'!E98","v":""},{"$f":"'Startovní listina'!F98","v":""}]
[{"$f":"IF('Výsledková listina'!D99<>\"\",A98+1,\"\")","v":""},null,{"$f":"'Startovní listina'!G99","v":""},{"$f":"'Startovní listina'!B99","v":""},{"$f":"'Startovní listina'!C99","v":""},{"$f":"'Startovní listina'!D99","v":""},{"$f":"'Startovní listina'!E99","v":""},{"$f":"'Startovní listina'!F99","v":""}]
[{"$f":"IF('Výsledková listina'!D100<>\"\",A99+1,\"\")","v":""},null,{"$f":"'Startovní listina'!G100","v":""},{"$f":"'Startovní listina'!B100","v":""},{"$f":"'Startovní listina'!C100","v":""},{"$f":"'Startovní listina'!D100","v":""},{"$f":"'Startovní listina'!E100","v":""},{"$f":"'Startovní listina'!F100","v":""}]
[{"$f":"IF('Výsledková listina'!D101<>\"\",A100+1,\"\")","v":""},null,{"$f":"'Startovní listina'!G101","v":""},{"$f":"'Startovní listina'!B101","v":""},{"$f":"'Startovní listina'!C101","v":""},{"$f":"'Startovní listina'!D101","v":""},{"$f":"'Startovní listina'!E101","v":""},{"$f":"'Startovní listina'!F101","v":""}]
[{"$f":"IF('Výsledková listina'!D102<>\"\",A101+1,\"\")","v":""},null,{"$f":"'Startovní listina'!G102","v":""},{"$f":"'Startovní listina'!B102","v":""},{"$f":"'Startovní listina'!C102","v":""},{"$f":"'Startovní listina'!D102","v":""},{"$f":"'Startovní listina'!E102","v":""},{"$f":"'Startovní listina'!F102","v":""}]
[{"$f":"IF('Výsledková listina'!D103<>\"\",A102+1,\"\")","v":""},null,{"$f":"'Startovní listina'!G103","v":""},{"$f":"'Startovní listina'!B103","v":""},{"$f":"'Startovní listina'!C103","v":""},{"$f":"'Startovní listina'!D103","v":""},{"$f":"'Startovní listina'!E103","v":""},{"$f":"'Startovní listina'!F103","v":""}]
[{"$f":"IF('Výsledková listina'!D104<>\"\",A103+1,\"\")","v":""},null,{"$f":"'Startovní listina'!G104","v":""},{"$f":"'Startovní listina'!B104","v":""},{"$f":"'Startovní listina'!C104","v":""},{"$f":"'Startovní listina'!D104","v":""},{"$f":"'Startovní listina'!E104","v":""},{"$f":"'Startovní listina'!F104","v":""}]
[{"$f":"IF('Výsledková listina'!D105<>\"\",A104+1,\"\")","v":""},null,{"$f":"'Startovní listina'!G105","v":""},{"$f":"'Startovní listina'!B105","v":""},{"$f":"'Startovní listina'!C105","v":""},{"$f":"'Startovní listina'!D105","v":""},{"$f":"'Startovní listina'!E105","v":""},{"$f":"'Startovní listina'!F105","v":""}]
[{"$f":"IF('Výsledková listina'!D106<>\"\",A105+1,\"\")","v":""},null,{"$f":"'Startovní listina'!G106","v":""},{"$f":"'Startovní listina'!B106","v":""},{"$f":"'Startovní listina'!C106","v":""},{"$f":"'Startovní listina'!D106","v":""},{"$f":"'Startovní listina'!E106","v":""},{"$f":"'Startovní listina'!F106","v":""}]
[{"$f":"IF('Výsledková listina'!D107<>\"\",A106+1,\"\")","v":""},null,{"$f":"'Startovní listina'!G107","v":""},{"$f":"'Startovní listina'!B107","v":""},{"$f":"'Startovní listina'!C107","v":""},{"$f":"'Startovní listina'!D107","v":""},{"$f":"'Startovní listina'!E107","v":""},{"$f":"'Startovní listina'!F107","v":""}]
[{"$f":"IF('Výsledková listina'!D108<>\"\",A107+1,\"\")","v":""},null,{"$f":"'Startovní listina'!G108","v":""},{"$f":"'Startovní listina'!B108","v":""},{"$f":"'Startovní listina'!C108","v":""},{"$f":"'Startovní listina'!D108","v":""},{"$f":"'Startovní listina'!E108","v":""},{"$f":"'Startovní listina'!F108","v":""}]
[{"$f":"IF('Výsledková listina'!D109<>\"\",A108+1,\"\")","v":""},null,{"$f":"'Startovní listina'!G109","v":""},{"$f":"'Startovní listina'!B109","v":""},{"$f":"'Startovní listina'!C109","v":""},{"$f":"'Startovní listina'!D109","v":""},{"$f":"'Startovní listina'!E109","v":""},{"$f":"'Startovní listina'!F109","v":""}]
[{"$f":"IF('Výsledková listina'!D110<>\"\",A109+1,\"\")","v":""},null,{"$f":"'Startovní listina'!G110","v":""},{"$f":"'Startovní listina'!B110","v":""},{"$f":"'Startovní listina'!C110","v":""},{"$f":"'Startovní listina'!D110","v":""},{"$f":"'Startovní listina'!E110","v":""},{"$f":"'Startovní listina'!F110","v":""}]
[{"$f":"IF('Výsledková listina'!D111<>\"\",A110+1,\"\")","v":""},null,{"$f":"'Startovní listina'!G111","v":""},{"$f":"'Startovní listina'!B111","v":""},{"$f":"'Startovní listina'!C111","v":""},{"$f":"'Startovní listina'!D111","v":""},{"$f":"'Startovní listina'!E111","v":""},{"$f":"'Startovní listina'!F111","v":""}]
[{"$f":"IF('Výsledková listina'!D112<>\"\",A111+1,\"\")","v":""},null,{"$f":"'Startovní listina'!G112","v":""},{"$f":"'Startovní listina'!B112","v":""},{"$f":"'Startovní listina'!C112","v":""},{"$f":"'Startovní listina'!D112","v":""},{"$f":"'Startovní listina'!E112","v":""},{"$f":"'Startovní listina'!F112","v":""}]
[{"$f":"IF('Výsledková listina'!D113<>\"\",A112+1,\"\")","v":""},null,{"$f":"'Startovní listina'!G113","v":""},{"$f":"'Startovní listina'!B113","v":""},{"$f":"'Startovní listina'!C113","v":""},{"$f":"'Startovní listina'!D113","v":""},{"$f":"'Startovní listina'!E113","v":""},{"$f":"'Startovní listina'!F113","v":""}]
[{"$f":"IF('Výsledková listina'!D114<>\"\",A113+1,\"\")","v":""},null,{"$f":"'Startovní listina'!G114","v":""},{"$f":"'Startovní listina'!B114","v":""},{"$f":"'Startovní listina'!C114","v":""},{"$f":"'Startovní listina'!D114","v":""},{"$f":"'Startovní listina'!E114","v":""},{"$f":"'Startovní listina'!F114","v":""}]
[{"$f":"IF('Výsledková listina'!D115<>\"\",A114+1,\"\")","v":""},null,{"$f":"'Startovní listina'!G115","v":""},{"$f":"'Startovní listina'!B115","v":""},{"$f":"'Startovní listina'!C115","v":""},{"$f":"'Startovní listina'!D115","v":""},{"$f":"'Startovní listina'!E115","v":""},{"$f":"'Startovní listina'!F115","v":""}]
[{"$f":"IF('Výsledková listina'!D116<>\"\",A115+1,\"\")","v":""},null,{"$f":"'Startovní listina'!G116","v":""},{"$f":"'Startovní listina'!B116","v":""},{"$f":"'Startovní listina'!C116","v":""},{"$f":"'Startovní listina'!D116","v":""},{"$f":"'Startovní listina'!E116","v":""},{"$f":"'Startovní listina'!F116","v":""}]
[{"$f":"IF('Výsledková listina'!D117<>\"\",A116+1,\"\")","v":""},null,{"$f":"'Startovní listina'!G117","v":""},{"$f":"'Startovní listina'!B117","v":""},{"$f":"'Startovní listina'!C117","v":""},{"$f":"'Startovní listina'!D117","v":""},{"$f":"'Startovní listina'!E117","v":""},{"$f":"'Startovní listina'!F117","v":""}]
[{"$f":"IF('Výsledková listina'!D118<>\"\",A117+1,\"\")","v":""},null,{"$f":"'Startovní listina'!G118","v":""},{"$f":"'Startovní listina'!B118","v":""},{"$f":"'Startovní listina'!C118","v":""},{"$f":"'Startovní listina'!D118","v":""},{"$f":"'Startovní listina'!E118","v":""},{"$f":"'Startovní listina'!F118","v":""}]
[{"$f":"IF('Výsledková listina'!D119<>\"\",A118+1,\"\")","v":""},null,{"$f":"'Startovní listina'!G119","v":""},{"$f":"'Startovní listina'!B119","v":""},{"$f":"'Startovní listina'!C119","v":""},{"$f":"'Startovní listina'!D119","v":""},{"$f":"'Startovní listina'!E119","v":""},{"$f":"'Startovní listina'!F119","v":""}]
[{"$f":"IF('Výsledková listina'!D120<>\"\",A119+1,\"\")","v":""},null,{"$f":"'Startovní listina'!G120","v":""},{"$f":"'Startovní listina'!B120","v":""},{"$f":"'Startovní listina'!C120","v":""},{"$f":"'Startovní listina'!D120","v":""},{"$f":"'Startovní listina'!E120","v":""},{"$f":"'Startovní listina'!F120","v":""}]
[{"$f":"IF('Výsledková listina'!D121<>\"\",A120+1,\"\")","v":""},null,{"$f":"'Startovní listina'!G121","v":""},{"$f":"'Startovní listina'!B121","v":""},{"$f":"'Startovní listina'!C121","v":""},{"$f":"'Startovní listina'!D121","v":""},{"$f":"'Startovní listina'!E121","v":""},{"$f":"'Startovní listina'!F121","v":""}]
[{"$f":"IF('Výsledková listina'!D122<>\"\",A121+1,\"\")","v":""},null,{"$f":"'Startovní listina'!G122","v":""},{"$f":"'Startovní listina'!B122","v":""},{"$f":"'Startovní listina'!C122","v":""},{"$f":"'Startovní listina'!D122","v":""},{"$f":"'Startovní listina'!E122","v":""},{"$f":"'Startovní listina'!F122","v":""}]
[{"$f":"IF('Výsledková listina'!D123<>\"\",A122+1,\"\")","v":""},null,{"$f":"'Startovní listina'!G123","v":""},{"$f":"'Startovní listina'!B123","v":""},{"$f":"'Startovní listina'!C123","v":""},{"$f":"'Startovní listina'!D123","v":""},{"$f":"'Startovní listina'!E123","v":""},{"$f":"'Startovní listina'!F123","v":""}]
[{"$f":"IF('Výsledková listina'!D124<>\"\",A123+1,\"\")","v":""},null,{"$f":"'Startovní listina'!G124","v":""},{"$f":"'Startovní listina'!B124","v":""},{"$f":"'Startovní listina'!C124","v":""},{"$f":"'Startovní listina'!D124","v":""},{"$f":"'Startovní listina'!E124","v":""},{"$f":"'Startovní listina'!F124","v":""}]
[{"$f":"IF('Výsledková listina'!D125<>\"\",A124+1,\"\")","v":""},null,{"$f":"'Startovní listina'!G125","v":""},{"$f":"'Startovní listina'!B125","v":""},{"$f":"'Startovní listina'!C125","v":""},{"$f":"'Startovní listina'!D125","v":""},{"$f":"'Startovní listina'!E125","v":""},{"$f":"'Startovní listina'!F125","v":""}]
[{"$f":"IF('Výsledková listina'!D126<>\"\",A125+1,\"\")","v":""},null,{"$f":"'Startovní listina'!G126","v":""},{"$f":"'Startovní listina'!B126","v":""},{"$f":"'Startovní listina'!C126","v":""},{"$f":"'Startovní listina'!D126","v":""},{"$f":"'Startovní listina'!E126","v":""},{"$f":"'Startovní listina'!F126","v":""}]
[{"$f":"IF('Výsledková listina'!D127<>\"\",A126+1,\"\")","v":""},null,{"$f":"'Startovní listina'!G127","v":""},{"$f":"'Startovní listina'!B127","v":""},{"$f":"'Startovní listina'!C127","v":""},{"$f":"'Startovní listina'!D127","v":""},{"$f":"'Startovní listina'!E127","v":""},{"$f":"'Startovní listina'!F127","v":""}]
[{"$f":"IF('Výsledková listina'!D128<>\"\",A127+1,\"\")","v":""},null,{"$f":"'Startovní listina'!G128","v":""},{"$f":"'Startovní listina'!B128","v":""},{"$f":"'Startovní listina'!C128","v":""},{"$f":"'Startovní listina'!D128","v":""},{"$f":"'Startovní listina'!E128","v":""},{"$f":"'Startovní listina'!F128","v":""}]
[{"$f":"IF('Výsledková listina'!D129<>\"\",A128+1,\"\")","v":""},null,{"$f":"'Startovní listina'!G129","v":""},{"$f":"'Startovní listina'!B129","v":""},{"$f":"'Startovní listina'!C129","v":""},{"$f":"'Startovní listina'!D129","v":""},{"$f":"'Startovní listina'!E129","v":""},{"$f":"'Startovní listina'!F129","v":""}]
[{"$f":"IF('Výsledková listina'!D130<>\"\",A129+1,\"\")","v":""},null,{"$f":"'Startovní listina'!G130","v":""},{"$f":"'Startovní listina'!B130","v":""},{"$f":"'Startovní listina'!C130","v":""},{"$f":"'Startovní listina'!D130","v":""},{"$f":"'Startovní listina'!E130","v":""},{"$f":"'Startovní listina'!F130","v":""}]
[{"$f":"IF('Výsledková listina'!D131<>\"\",A130+1,\"\")","v":""},null,{"$f":"'Startovní listina'!G131","v":""},{"$f":"'Startovní listina'!B131","v":""},{"$f":"'Startovní listina'!C131","v":""},{"$f":"'Startovní listina'!D131","v":""},{"$f":"'Startovní listina'!E131","v":""},{"$f":"'Startovní listina'!F131","v":""}]
[{"$f":"IF('Výsledková listina'!D132<>\"\",A131+1,\"\")","v":""},null,{"$f":"'Startovní listina'!G132","v":""},{"$f":"'Startovní listina'!B132","v":""},{"$f":"'Startovní listina'!C132","v":""},{"$f":"'Startovní listina'!D132","v":""},{"$f":"'Startovní listina'!E132","v":""},{"$f":"'Startovní listina'!F132","v":""}]
[{"$f":"IF('Výsledková listina'!D133<>\"\",A132+1,\"\")","v":""},null,{"$f":"'Startovní listina'!G133","v":""},{"$f":"'Startovní listina'!B133","v":""},{"$f":"'Startovní listina'!C133","v":""},{"$f":"'Startovní listina'!D133","v":""},{"$f":"'Startovní listina'!E133","v":""},{"$f":"'Startovní listina'!F133","v":""}]
[{"$f":"IF('Výsledková listina'!D134<>\"\",A133+1,\"\")","v":""},null,{"$f":"'Startovní listina'!G134","v":""},{"$f":"'Startovní listina'!B134","v":""},{"$f":"'Startovní listina'!C134","v":""},{"$f":"'Startovní listina'!D134","v":""},{"$f":"'Startovní listina'!E134","v":""},{"$f":"'Startovní listina'!F134","v":""}]
[{"$f":"IF('Výsledková listina'!D135<>\"\",A134+1,\"\")","v":""},null,{"$f":"'Startovní listina'!G135","v":""},{"$f":"'Startovní listina'!B135","v":""},{"$f":"'Startovní listina'!C135","v":""},{"$f":"'Startovní listina'!D135","v":""},{"$f":"'Startovní listina'!E135","v":""},{"$f":"'Startovní listina'!F135","v":""}]
[{"$f":"IF('Výsledková listina'!D136<>\"\",A135+1,\"\")","v":""},null,{"$f":"'Startovní listina'!G136","v":""},{"$f":"'Startovní listina'!B136","v":""},{"$f":"'Startovní listina'!C136","v":""},{"$f":"'Startovní listina'!D136","v":""},{"$f":"'Startovní listina'!E136","v":""},{"$f":"'Startovní listina'!F136","v":""}]
[{"$f":"IF('Výsledková listina'!D137<>\"\",A136+1,\"\")","v":""},null,{"$f":"'Startovní listina'!G137","v":""},{"$f":"'Startovní listina'!B137","v":""},{"$f":"'Startovní listina'!C137","v":""},{"$f":"'Startovní listina'!D137","v":""},{"$f":"'Startovní listina'!E137","v":""},{"$f":"'Startovní listina'!F137","v":""}]
[{"$f":"IF('Výsledková listina'!D138<>\"\",A137+1,\"\")","v":""},null,{"$f":"'Startovní listina'!G138","v":""},{"$f":"'Startovní listina'!B138","v":""},{"$f":"'Startovní listina'!C138","v":""},{"$f":"'Startovní listina'!D138","v":""},{"$f":"'Startovní listina'!E138","v":""},{"$f":"'Startovní listina'!F138","v":""}]
[{"$f":"IF('Výsledková listina'!D139<>\"\",A138+1,\"\")","v":""},null,{"$f":"'Startovní listina'!G139","v":""},{"$f":"'Startovní listina'!B139","v":""},{"$f":"'Startovní listina'!C139","v":""},{"$f":"'Startovní listina'!D139","v":""},{"$f":"'Startovní listina'!E139","v":""},{"$f":"'Startovní listina'!F139","v":""}]
[{"$f":"IF('Výsledková listina'!D140<>\"\",A139+1,\"\")","v":""},null,{"$f":"'Startovní listina'!G140","v":""},{"$f":"'Startovní listina'!B140","v":""},{"$f":"'Startovní listina'!C140","v":""},{"$f":"'Startovní listina'!D140","v":""},{"$f":"'Startovní listina'!E140","v":""},{"$f":"'Startovní listina'!F140","v":""}]
[]
[]
[]
[]
[]
[null,null,null,"seřadit podle kategorie a pak podle času"]

{"sheet":"Běh přes přehradu","index":3,"n_rows":53,"n_cols":11,"rows_kept":53,"cut":false,"hidden":false,"merged":[[0,0,0,7],[1,0,1,7]]}
[{"$f":"\"Běh přes přehradu \"&'Startovní listina'!A2","v":"Běh přes přehradu 15. ročník"}]
[{"$f":"'Startovní listina'!A3:G3","v":"2019-05-25"}]
[null,"Příjmení","Jméno","Narození","Oddíl / Bydliště","Startovní číslo","Čas","Pohlaví"]
[1,"Glierová","Renata",1985,"Doubravník",67,"00:20:01",{"$f":"IF(LEN(B4)=0,\" \",IF(MID(B4,LEN(B4),1)=\"á\",\"Ž\",\"M\"))","v":"Ž"}]
[{"$f":"IF(B4<>\"\",A4+1,\"\")","v":2},"Golová","Tereza",2001,"OB Vizovice",9,"00:20:35","Ž"]
[{"$f":"IF(B5<>\"\",A5+1,\"\")","v":3},"Stalmachová","Nika",2002,"Vír",60,"00:22:17","Ž"]
[4,"Horáková","Jana",1979,"Lesoňovice",36,"00:23:31","Ž"]
[5,"Dufková","Miroslava",1970,"4maxfitness",3,"00:23:42","Ž",null,null,","]
[6,"Kubíková","Vanesa",2009,"Vír",82,"00:24:39","Ž"]
[7,"Janová","Petra",1973,"4maxfitness",80,"00:26:48","Ž"]
[8,"Kunešová","Violeta",2010,"eurunner.eu",6,"00:27:12","Ž"]
[9,"Havlová","Gabriela",1975,"Vír",4,"00:27:47","Ž"]
[10,"Šantorová","Radka",2001,"Vítochov",40,"00:28:53","Ž"]
[11,"Humplíková","Petra",1979,"Bystřice nad Pernštejnem",10,"00:28:54","Ž"]
[12,"Kunešová","Monika",1978,"eurunner.eu",22,"00:29:52","Ž"]
[13,"Pučálka","Radek",1977,"Železárny Štěpánov",83,"00:19:37","M"]
[14,"Matula","Jaroslav",1970,"Brno",14,"00:20:23","M"]
[15,"Hamerský","Kamil",1972,"Vír",33,"00:20:58","M"]
[16,"Burkart","David",1996,"Vizovice",13,"00:22:11","M"]
[17,"Pelc","Jaroslav",1983,"Železárny Štěpánov",24,"00:22:18","M"]
[18,"Žličař","Karel",1977,"Železárny Štěpánov",62,"00:22:32","M"]
[19,"Navrátil","Jaroslav",1980,"Trpín",76,"00:22:58","M"]
[20,"Kubík","Oldřich",1981,"O.S. Přátel Víru",56,"00:24:40","M"]
[21,"Kuneš","Vincent",2008,"eurunner.eu",58,"00:24:51","M"]
[22,"Kuneš","David",1974,"eurunner.eu",37,"00:27:21","M"]
[23,"Šenkýř","David",1991,"Vír",85,"00:27:48","M"]
[24,null,null,null,null,null,null," "]
["",null,null,null,null,null,null," "]
["",null,null,null,null,null,null," "]
["",null,null,null,null,null,null," "]
["",null,null,null,null,null,null," "]
["",null,null,null,null,null,null," "]
["",null,null,null,null,null,null," "]
["",null,null,null,null,null,null," "]
["",null,null,null,null,null,null," "]
["",null,null,null,null,null,null,{"$f":"IF(LEN(B36)=0,\" \",IF(MID(B36,LEN(B36),1)=\"á\",\"Ž\",\"M\"))","v":" "}]
["",null,null,null,null,null,null," "]
["",null,null,null,null,null,null," "]
["",null,null,null,null,null,null," "]
["",null,null,null,null,null,null," "]
["",null,null,null,null,null,null," "]
["",null,null,null,null,null,null," "]
["",null,null,null,null,null,null," "]
["",null,null,null,null,null,null," "]
["",null,null,null,null,null,null," "]
["",null,null,null,null,null,null," "]
["",null,null,null,null,null,null," "]
["",null,null,null,null,null,null," "]
["",null,null,null,null,null,null," "]
["",null,null,null,null,null,null," "]
["",null,null,null,null,null,null," "]
["",null,null,null,null,null,null," "]
["",null,null,null,null,null,null," "]

{"sheet":"mezičasy","index":4,"n_rows":30,"n_cols":6,"rows_kept":30,"cut":false,"hidden":false,"merged":[[0,0,0,1],[0,2,0,3],[0,4,0,5]]}
["5. km",null,"17. km",null,"22. km"]
["číslo","čas","číslo","čas","číslo","čas"]
[33,"00:19:07",33,"01:06:25",33,"01:25:50"]
[16,"00:19:38",16,"01:08:00",16,"01:27:57"]
["4\n21","00:21:03",4,"01:11:20",4,"01:31:06"]
[41,"00:21:31",21,"01:11:28",21,"01:31:35"]
[32,"00:21:47",null,":      :",41,"01:34:27"]
[37,"00:22:10",null,":      :",28,"01:35:37"]
[28,"00:22:28",null,":      :",null,":      :"]
[null,":      :",null,":      :",null,":      :"]
[36,"00:23:25",null,":      :",null,":      :"]
[38,"00:24:17",null,":      :",null,":      :"]
[22,"00:25:22",null,":      :",null,":      :"]
[24,"00:25:58",null,":      :",null,":      :"]
[null,":      :",null,":      :",null,":      :"]
[null,":      :",null,":      :",null,":      :"]
[null,":      :",null,":      :",null,":      :"]
[null,":      :",null,":      :",null,":      :"]
[null,":      :",null,":      :",null,":      :"]
[null,":      :",null,":      :",null,":      :"]
[null,":      :",null,":      :",null,":      :"]
[null,":      :",null,":      :",null,":      :"]
[null,":      :",null,":      :",null,":      :"]
[null,":      :",null,":      :",null,":      :"]
[null,":      :",null,":      :",null,":      :"]
[null,":      :",null,":      :",null,":      :"]
[null,":      :",null,":      :",null,":      :"]
[null,":      :",null,":      :",null,":      :"]
[null,":      :",null,":      :",null,":      :"]
[null,":      :",null,":      :",null,":      :"]

{"sheet":"List1","index":5,"n_rows":73,"n_cols":11,"rows_kept":73,"cut":false,"hidden":true,"merged":[]}
[]
[]
[]
[]
[]
[null,"1.","Fusek Pavel                         1974                 Cetoraz",null,null,null,null,null,null,null,{"$f":"TRIM(C6)","v":"Fusek Pavel 1974 Cetoraz"}]
[null,"2.","Veškrna Ivan                    1983                 Brno",null,null,null,null,null,null,null,{"$f":"TRIM(C7)","v":"Veškrna Ivan 1983 Brno"}]
[null,"3.","Procházková Tereza          1990                 Orel Ořechov",null,null,null,null,null,null,null,"Procházková Tereza 1990 Orel Ořechov"]
[null,"4.","Milka Zdeněk                     1984                  Brno                         odvoz",null,null,null,null,null,null,null,"Milka Zdeněk 1984 Brno odvoz"]
[null,"5.","Tesařová Marie                 1954                  Křižanov",null,null,null,null,null,null,null,"Tesařová Marie 1954 Křižanov"]
[null,"6.","Konečný Jaroslav              1969                  Popůvky ",null,null,null,null,null,null,null,"Konečný Jaroslav 1969 Popůvky"]
[null,"7.","Havránek Jan                     1977                 Brno",null,null,null,null,null,null,null,"Havránek Jan 1977 Brno"]
[null,"8.","Šustrová Kateřina             1979                  Liga 100 Olomouc",null,null,null,null,null,null,null,"Šustrová Kateřina 1979 Liga 100 Olomouc"]
[null,"9.","Mikeš Filip                          1977                 CK Vinohradské šlapky",null,null,null,null,null,null,null,"Mikeš Filip 1977 CK Vinohradské šlapky"]
[null,"10.","PodmelováVilma             1962 Moravská Slávia Brno",null,null,null,null,null,null,null,"PodmelováVilma 1962 Moravská Slávia Brno"]
[null,"11.","Holý Josef                           1941                 Moravská Slávia Brno",null,null,null,null,null,null,null,"Holý Josef 1941 Moravská Slávia Brno"]
[null,"12.","Mareš Bohumír                 1951                 LEAR Brno",null,null,null,null,null,null,null,"Mareš Bohumír 1951 LEAR Brno"]
[null,"13.","Měřínský Jaroslav             1961                 AK Perná",null,null,null,null,null,null,null,"Měřínský Jaroslav 1961 AK Perná"]
[null,"14.","Komárková Zdeňka          1974                 SDH Bolešín",null,null,null,null,null,null,null,"Komárková Zdeňka 1974 SDH Bolešín"]
[null,"15.","Kratochvíl Pavel                1960                 Sokol Rudíkov",null,null,null,null,null,null,null,"Kratochvíl Pavel 1960 Sokol Rudíkov"]
[null,"16.","Kratochvíl Jaroslav           1977                 SDH Hluboké",null,null,null,null,null,null,null,"Kratochvíl Jaroslav 1977 SDH Hluboké"]
[null,"17.","Zouhar Libor                     1958 Brno - Líšeň ",null,null,null,null,null,null,null,"Zouhar Libor 1958 Brno - Líšeň"]
[null,"18.","Martincová Ivana             1963                 Moravská Slávia Brno",null,null,null,null,null,null,null,"Martincová Ivana 1963 Moravská Slávia Brno"]
[null,"19.","Čech Petr                           1981                 Prostějov",null,null,null,null,null,null,null,"Čech Petr 1981 Prostějov"]
[null,"20.","Žák Jiří                                1971                 MK Seitl Ostrava",null,null,null,null,null,null,null,"Žák Jiří 1971 MK Seitl Ostrava"]
[null,"21.","NovoinýPetr                     1965                 Kuřim",null,null,null,null,null,null,null,"NovoinýPetr 1965 Kuřim"]
[null,"22.","Ožana Václav                    1964                TJ Nové Město na Mor.  St.č. 50 (má 50let)",null,null,null,null,null,null,null,"Ožana Václav 1964 TJ Nové Město na Mor. St.č. 50 (má 50let)"]
[null,"23.","Kupka Pavel                      1975                 Lukovany",null,null,null,null,null,null,null,"Kupka Pavel 1975 Lukovany"]
[null,"24.","Sedláček Roman              1964Activity Lanškroun",null,null,null,null,null,null,null,"Sedláček Roman 1964Activity Lanškroun"]
[null,"25.","Fučík Jaroslav                   1974                 Prosetín ",null,null,null,null,null,null,null,"Fučík Jaroslav 1974 Prosetín"]
[null,"26.","GlierMichal                      1982                 Moravská Slávia Brno",null,null,null,null,null,null,null,"GlierMichal 1982 Moravská Slávia Brno"]
[null,"27.","JaskulkaMartin                1968                 Kuřim",null,null,null,null,null,null,null,"JaskulkaMartin 1968 Kuřim"]
[null,"28.","Suchý Karel                       1956                 Náměšť nad Osl.",null,null,null,null,null,null,null,"Suchý Karel 1956 Náměšť nad Osl."]
[null,"29.","Skalický Josef                    1962                POLDR Žichlínek",null,null,null,null,null,null,null,"Skalický Josef 1962 POLDR Žichlínek"]
[null,"30.","Šorf Ivo                              1975                ABND Racing Team Bystřice n.P.",null,null,null,null,null,null,null,"Šorf Ivo 1975 ABND Racing Team Bystřice n.P."]
[null,"31.","Sedlák Pavel                     1971                 Slatiňany",null,null,null,null,null,null,null,"Sedlák Pavel 1971 Slatiňany"]
[null,"32.","KožiakJuraj                      1974                 Kuničky",null,null,null,null,null,null,null,"KožiakJuraj 1974 Kuničky"]
[null,"33.","Pozler Jiří                          1983                Hradec Králové        odvoz",null,null,null,null,null,null,null,"Pozler Jiří 1983 Hradec Králové odvoz"]
[null,"34.","Rozkoš Tomáš                  1984                Hradec Králové       odvoz",null,null,null,null,null,null,null,"Rozkoš Tomáš 1984 Hradec Králové odvoz"]
[null,"35.","ŠtybnarZbyněk               1974                 Běžec Vysočiny Jihlava",null,null,null,null,null,null,null,"ŠtybnarZbyněk 1974 Běžec Vysočiny Jihlava"]
[null,"36.","RerychJiří                        1962                 Moravská Slávia Brno",null,null,null,null,null,null,null,"RerychJiří 1962 Moravská Slávia Brno"]
[null,"37.","Krátká Anna                     1969                 Hvězda SKP Pardubice",null,null,null,null,null,null,null,"Krátká Anna 1969 Hvězda SKP Pardubice"]
[null,"38.","Krátký Josef                     1965                 Hvězda SKP Pardubice ",null,null,null,null,null,null,null,"Krátký Josef 1965 Hvězda SKP Pardubice"]
[null,"39.","Polcar Jiří                         1977                 Farma Jiřího Chrásta-SK Veselí",null,null,null,null,null,null,null,"Polcar Jiří 1977 Farma Jiřího Chrásta-SK Veselí"]
[null,"40.","Čech Martin                     1978                Farma Jiřího Chrásta-SK Veselí",null,null,null,null,null,null,null,"Čech Martin 1978 Farma Jiřího Chrásta-SK Veselí"]
[null,"41.","Stejskal Petr                     1976                Farma Jiřího Chrásta-SK Veselí ",null,null,null,null,null,null,null,"Stejskal Petr 1976 Farma Jiřího Chrásta-SK Veselí"]
[null,"42.","Šerák Martin                  1978                Sokol Bílovice nad Svit.",null,null,null,null,null,null,null,"Šerák Martin 1978 Sokol Bílovice nad Svit."]
[null,"43.","Ledvina Luděk                 1976                Bílovice nad Svit.",null,null,null,null,null,null,null,"Ledvina Luděk 1976 Bílovice nad Svit."]
[null,"44.","Kocur Lukáš                     1977              Otmarov",null,null,null,null,null,null,null,"Kocur Lukáš 1977 Otmarov"]
[null,"45.","Brabenec Miroslav        1959                 Žďár nad Sáz.",null,null,null,null,null,null,null,"Brabenec Miroslav 1959 Žďár nad Sáz."]
[null,"46.","KučínskýPavel               1959                  Brno",null,null,null,null,null,null,null,"KučínskýPavel 1959 Brno"]
[null,"47.","Hrubý Milan                   1938                  Blansko    odvoz",null,null,null,null,null,null,null,"Hrubý Milan 1938 Blansko odvoz"]
[null,"48.","Kaše Jaroslav                  1953                 Club běžeckých outsiderů",null,null,null,null,null,null,null,"Kaše Jaroslav 1953 Club běžeckých outsiderů"]
[null,"49.","Kropáček Jaroslav          1970                 Brno",null,null,null,null,null,null,null,"Kropáček Jaroslav 1970 Brno"]
[null,"50.","Koutský Tomáš               1987                HO Vír",null,null,null,null,null,null,null,"Koutský Tomáš 1987 HO Vír"]
[null,"51.","Filip Rostislav                  1986                HO Vír",null,null,null,null,null,null,null,"Filip Rostislav 1986 HO Vír"]
[null,"52.","Blaha Rostislav               1989                BK Vísky",null,null,null,null,null,null,null,"Blaha Rostislav 1989 BK Vísky"]
[null,"53.","Blaha Stanislav               1963                BK Vísky",null,null,null,null,null,null,null,"Blaha Stanislav 1963 BK Vísky"]
[null,"54.","Kohut Jan                        1985                MIZUNO RELAX-FIT TEAM",null,null,null,null,null,null,null,"Kohut Jan 1985 MIZUNO RELAX-FIT TEAM"]
[null,"55.","Pavelka Richard             1981                Brno",null,null,null,null,null,null,null,"Pavelka Richard 1981 Brno"]
[null,"56.","Klíma Miroslav               1975                Mechanika Prostějov",null,null,null,null,null,null,null,"Klíma Miroslav 1975 Mechanika Prostějov"]
[null,"57.","Ondráček Tomáš           1977                Sporty.cz Brno",null,null,null,null,null,null,null,"Ondráček Tomáš 1977 Sporty.cz Brno"]
[null,"58.","BódiováAdéla                1976                Sporty.cz Brno",null,null,null,null,null,null,null,"BódiováAdéla 1976 Sporty.cz Brno"]
[null,"59.","Ráčková Dáša                 1976                Sporty.cz Křoví",null,null,null,null,null,null,null,"Ráčková Dáša 1976 Sporty.cz Křoví"]
[null,"60.","Kopečný Dušan              1973                Maratonský klub Prostějov",null,null,null,null,null,null,null,"Kopečný Dušan 1973 Maratonský klub Prostějov"]
[null,"61.","Krejčová Magda             1980                Brno",null,null,null,null,null,null,null,"Krejčová Magda 1980 Brno"]
[null,"62.","Janek Petr                       1969                Brno",null,null,null,null,null,null,null,"Janek Petr 1969 Brno"]
[null,"63.","PálenskýMilan               1977Stržanov",null,null,null,null,null,null,null,"PálenskýMilan 1977Stržanov"]
[null,"64.","Sedláček Svatopluk       1957               Moravská Slávia Brno",null,null,null,null,null,null,null,"Sedláček Svatopluk 1957 Moravská Slávia Brno"]
[null,"65.","Krejsová Petra               1979                Boskovice",null,null,null,null,null,null,null,"Krejsová Petra 1979 Boskovice"]
[null,"66.","Šperka Oldřich               1956                Jedovnice  ",null,null,null,null,null,null,null,{"$f":"TRIM(C71)","v":"Šperka Oldřich 1956 Jedovnice"}]
[null,"67.","Skřivánek Petr               1966                LRS Vyškov",null,null,null,null,null,null,null,"Skřivánek Petr 1966 LRS Vyškov"]
[null,"68.","Szabová Dana                1967               LRS Vyškov",null,null,null,null,null,null,null,"Szabová Dana 1967 LRS Vyškov"]